Workbook

Sheet Data Input
A1: STATE OF ARIZONA
A2: CLOSING PACKAGE
A3: O - GASB 96 SBITAs - Form 80a
A4: Collection Form for FY2024 SBITAs
A5: (Subscription-Based Information Technology Arrangements)
A6: ----- Due Date 8/22/2025 -----
A7: This FILLABLE form is designed to capture your agency's GASB 96 SBITA information.
A9: Reporting background:
A10: Please complete this form for every SBITA contract that qualifies as a GASB 96 SBITA AND has a start date during FY2025 (July 1, 2024 - June 30, 2025). | B10: Closing Package Section O: Form 80 - SBITA Decision Form
A12: For example:
A13: - Meets scope requirements and is not listed as specifically EXCLUDED,
A14: - Total SBITA payments + capitalizable implementation costs are greater than the Materiality Threshold of $5,000,000, and
A15: - Has a Maximum Possible Subscription Term of more than 12 months.
A16: You should have completed the "SBITA Decision Form" first to verify qualifications (Closing Package Section O - link at right):
A18: STEPS:
A19: 1. Collect the SBITA Contracts and other information for all qualifying SBITAs identified on Decision Form and use that information to fill out this Collection Form.
A21: 2. Save a copy of this Collection Form and rename with your Agency's 3 letter ID. For example - "ADA FY2025 SBITA Collection Form"
A23: 3. Complete the following sections by entering in the applicable information for each subscription within a separate column (starting with column C). There are 10 columns provided. If you have more than 10 SBITAs, duplicate the form & label as needed (1 of 2, 2 of 2, or 1 of 3, 2 of 3, 3 of 3, etc).
A26: 4. Maintain all documentation and supporting workpapers to support your conclusion for audit purposes in a permanent file (i.e. SBITA Contracts, Decision Form, and this SBITA Collection Form).
A28: 5. Return a copy of this SBITA Collection Form along with the related SBITA contracts and pricing spreadsheets (if separate) to the ACFR e-mail address at right by the Due Date listed above. | B28: ACFR@azdoa.gov
A31: Note 1 - The Teal highlighted cells are for manual or drop-down input. The Orange highlighted cells contain formulas and will automatically fill. Please do not change the Orange cells.
A33: Note 2 - Do not insert new columns or rows. As noted above, if you have more than 10 SBITAs, duplicate the form instead of inserting new columns.
A35: Note 3 - Several sections below mention the criteria, 'Reasonably Certain'. To be reasonably certain means that there is a greater than probable chance an event will take place.
A38: The Decision Form includes an overview of GASB 96. The full text of GASB Statement 96 can be found here: | B38: GASB 96 - SBITAs
A40: For additional questions on any of the above steps (including filling out this form), please send questions to the ACFR e-mail address above.
A43: I. Agency Information
A44: (Only need to fill out this section once for entire worksheet)
A45: Agency three letter ID in AZ360 (Example: Arizona Department of Administration = ADA):
A46: Preparer Name:
A47: Preparer E-mail:
A48: Preparer Phone:
A49: Date Completed:
A50: Approved by:
A52: How many qualifying GASB 96 SBITAs were identified on the SBITA Decision Form?
A53: If more than 10, the agency will need to fill out multiple forms (label them 1 of 2, 2 of 2, or 1 of 3, 2 of 3, 3 of 3, etc)
A55: II. General Information | B55: Example (complex) | C55: SBITA # 1 | D55: SBITA # 2 | E55: SBITA # 3 | F55: SBITA # 4 | G55: SBITA # 5 | H55: SBITA # 6 | I55: SBITA # 7 | J55: SBITA # 8 | K55: SBITA # 9 | L55: SBITA # 10
A56: 1a. Contract # if specific to this SBITA (If the contract is a Statewide Contract used for multiple SBITAs, please create your own rational numbering system, i.e. agency code, 2 digit FY and a 2 digit #) | B56: ADA2501
A59: 1b. If using a Statewide Contract used for multiple SBITAs, please provide the Statewide Contract # here (N/A if not applicable) | B59: CTR124578
A62: 2. Name of the SBITA Vendor (Vendor where payments are sent) | B62: A+ Software & Hosting, Inc
A64: 3. Name &/or Short Description of Software Subscription or Other IT-related Arrangement
A65: Please provide name of software and/or a short description of any other related cloud infrastructure access (i.e. vendor server, cloud-based computing such as SaaS, PaaS or IaaS, etc) | B65: A+ Hosting
A68: 4. Is this SBITA a NEW SBITA (entered into between 7/1/2024 - 6/30/2025) or an Existing SBITA which previously did not meet the reporting threshold but now qualifies due to a Significant Modification? | B68: New (FY2025)
A71: 5. Is the entire Subscription Payment paid from One Source of funding or Divided between Funds or Agencies? | B71: Divided - Fill out Subscrptn Split Tab
A72: If the payment is divided, then please switch to the "Subscrptn Split" Tab to fill out the payment split info (click on hyperlink to the right for correct corresponding SBITA # column). | B72: Example - Subscrptn Split | C72: SBITA # 1 - Subscrptn Split | D72: SBITA # 2 - Subscrptn Split | E72: SBITA # 3 - Subscrptn Split | F72: SBITA # 4 - Subscrptn Split | G72: SBITA # 5 - Subscrptn Split | H72: SBITA # 6 - Subscrptn Split | I72: SBITA # 7 - Subscrptn Split | J72: SBITA # 8 - Subscrptn Split | K72: SBITA # 9 - Subscrptn Split | L72: SBITA # 10 - Subscrptn Split
A74: If the funding is all from One Source, please provide the following Chart of Accounts (COA) Elements below. REQUIRED elements are starred (*). Use any other COA indicated below that will help identify the payments made for each SBITA.
A76: Agency * | B76: see Subscription Split Tab
A77: Fund *
A78: Object *
A79: Appropriation
A80: Unit
A81: Task
A82: Sub Task
A83: Program
A84: Phase
A85: Program Period
A86: Dept Object
A88: III. Asset Information
A89: 6. Identify Asset type (Software or Other IT Arrangement)
A90: All SBITAs will be capitalized as a "SBITA", but useful life calculations require a little deeper classification. | B90: Other IT Arrangement
A91: - A subscription for "Software" could be identified in a contract as "Software" or as a "SaaS" (Software as a Service)
A92: - Software useful life is based on cost more than (>) or less than (<) $10 million.
A93: - The total SBITA cost should include both the Implementation Costs as well as total Subscription Costs.
A94: - A subscription for an "Other IT Arrangement" could include Hosting, Data Usage, or other activities identified in a contract (i.e. PaaS (Platform as a Service) or IaaS (Infrastructure as a Service) arrangements).
A96: - Other IT Arrangements do not have a defined useful life and will therefore use the SBITA Term for useful life.
A98: Useful life
A99: 7. Useful life per Capital Asset conventions for the State (will automatically fill) | B99: =VLOOKUP(B90,'Drop Down List'!$A3:$B5,2,FALSE) -> Use SBITA term | C99: =VLOOKUP(C90,'Drop Down List'!$A3:$B5,2,FALSE) ->  | D99: =VLOOKUP(D90,'Drop Down List'!$A3:$B5,2,FALSE) ->  | E99: =VLOOKUP(E90,'Drop Down List'!$A3:$B5,2,FALSE) ->  | F99: =VLOOKUP(F90,'Drop Down List'!$A3:$B5,2,FALSE) ->  | G99: =VLOOKUP(G90,'Drop Down List'!$A3:$B5,2,FALSE) ->  | H99: =VLOOKUP(H90,'Drop Down List'!$A3:$B5,2,FALSE) ->  | I99: =VLOOKUP(I90,'Drop Down List'!$A3:$B5,2,FALSE) ->  | J99: =VLOOKUP(J90,'Drop Down List'!$A3:$B5,2,FALSE) ->  | K99: =VLOOKUP(K90,'Drop Down List'!$A3:$B5,2,FALSE) ->  | L99: =VLOOKUP(L90,'Drop Down List'!$A3:$B5,2,FALSE) -> 
A101: 8. Total (Remaining) Subscription Term Term per #18 (will automatically fill once completed below) | B101: =B147 -> 84 | C101: =C147 -> 1 | D101: 1 | E101: =E147 -> 1 | F101: 1 | G101: 1 | H101: 1 | I101: 1 | J101: 1 | K101: 1 | L101: 1
A103: 9. Useful Life for SBITA Asset based on answers above (will automatically fill) | B103: =IF(B99<B101,B99,B101) -> 84 | C103: =IF(C99<C101,C99,C101) ->  | E103: =IF(E99<E101,E99,E101) -> 
A105: 10. Are there any adjustments for measurement of the SBITA Asset?
A106: Per GASB 96, the SBITA Asset cost = | B106: Yes - Fill out on Asset Adj Tab
A107: + Initial SBITA Liability (calculated in PV calc tab)
A108: Plus/Minus Asset Adjustments:
A109: - Incentives from SBITA Vendor received at or before Go-Live Date (i.e. to buy out a preexisting obligation or reimburse certain implementation costs)
A111: + Payments made to SBITA Vendor at or before Go-Live Date (i.e. downpayment or subscription payments before Go-Live Date)
A113: + Capitalizable Implementation Costs (includes staff time, consultation costs and any other costs related to implementation)
A114: If Yes, then please read Asset Adjustment instructions carefully in Asset Adj tab and fill out within the corresponding column: | B114: Example - Asset Adj | C114: SBITA # 1 - Asset Adj | D114: SBITA # 2 - Asset Adj | E114: SBITA # 3 - Asset Adj | F114: SBITA # 4 - Asset Adj | G114: SBITA # 5 - Asset Adj | H114: SBITA # 6 - Asset Adj | I114: SBITA # 7 - Asset Adj | J114: SBITA # 8 - Asset Adj | K114: SBITA # 9 - Asset Adj | L114: SBITA # 10 - Asset Adj
A115: Note: If SBITA previously did not meet the materiality threshold but now qualifies due to a Significant Modification AND that Significant Modification includes Implementation Costs for an Upgrade or additional functionality (new Module), will need to fill out the Asset Adj tab for those Capitalizable Implementation Costs.
A119: 11. Software capitalized in AZ360?
A120: Because the calculation for the SBITA Asset includes the Subscripton Term, Present Value of the Liability AND Capitalizable Implementation Costs, this calculation will be performed manually by the GAAP Group outside of AZ360 and should NOT be entered into AZ360. If this was done in error, please indicate "Yes" here. | B120: No
A124: 12. If the above question is answered Yes, please indicate the Asset # in AZ360 (You will be contacted by the GAAP Group with instructions on how to correct this). | B124: N/A
A127: IV. SBITA Term (Subscription and Implementation)
A128: 13. Contract Start Date
A129: Enter the Effective Contract Start Date. This may or may not be the same as the signed date. | B129: 2024-09-01
A131: 14. Date Put Into Service/Go-Live Date (may be different than above)
A132: - If there will be a period needed to implement the software or other IT-related subscription, enter the Date the Software was/will be Put Into Service, or Go-Live Date (if still in the implementation phase, enter the EXPECTED Go-Live Date). | B132: 2025-09-01
A134: - If put into service immediately, then enter the Contract Start Date.
A136: 15. Contracted Subscription Term End Date
A137: Enter the date the contracted SBITA term ends, unless the agency is Reasonably Certain to exercise a Termination Clause, in which case, enter the date the agency plans to terminate the subscription. | B137: 2030-08-31
A139: Subscription Term in months (will automatically fill) - HIDE THIS LINE IN FINAL VERSION | B139: =ROUND(DATEDIF(B132,B137,"M"),0)+1 -> 60 | C139: =ROUND(DATEDIF(C132,C137,"M"),0)+1 -> 1 | D139: =ROUND(DATEDIF(D132,D137,"M"),0)+1 -> 1 | E139: 1 | F139: 1 | G139: 1 | H139: 1 | I139: 1 | J139: 1 | K139: 1 | L139: 1
A141: 16. Options to Extend Term
A142: If subscription term extensions are available in the contract, AND the agency is reasonably certain to exercise it, enter # of months available to extend the subscription. | B142: 24
A145: 17. Subscription End Date including Extensions (will automatically fill). | B145: =EDATE(B137,B142) -> 2032-08-31 | C145: =EDATE(C137,C142) -> 00:00:00 | D145: =EDATE(D137,D142) -> 00:00:00 | E145: 00:00:00 | F145: 00:00:00 | G145: 00:00:00 | H145: 00:00:00 | I145: 00:00:00 | J145: 00:00:00 | K145: =EDATE(K137,K142) -> 00:00:00 | L145: 00:00:00
A147: 18. Total Subscription Term including Extensions in Months (will automatically fill) | B147: =B139+B142 -> 84 | C147: 1 | D147: 1 | E147: 1 | F147: 1 | G147: 1 | H147: 1 | I147: 1 | J147: 1 | K147: =K139+K142 -> 1 | L147: 1
A149: 19. Frequency of Subscription Payments
A150: Enter how often subscription payments are made (Monthly, Quarterly, Semi-Annually, Annually). | B150: Semi-annually
A151: - If payments are Less Often than Annually (e.g. every 5 years), choose Annually from the dropdown list here (frequency must be at least Annually for Present Value Calculation to work). In the PV Calc tab, there are special instructions (Step #1f) and a space to describe the payment frequency (Step #1g) if Less Often than Annually.
A154: # of pmts/yr - HIDE THIS LINE IN FINAL VERSION | B154: =IF(B150="Weekly",52,IF(B150="Monthly",12,IF(B150="Quarterly",4,IF(B150="Semi-Annually",2,1)))) -> 2 | C154: 1 | D154: =IF(D150="Weekly",52,IF(D150="Monthly",12,IF(D150="Quarterly",4,IF(D150="Semi-Annually",2,1)))) -> 1 | E154: 1 | F154: 1 | G154: 1 | H154: 1 | I154: 1 | J154: 1 | K154: 1 | L154: 1
A156: 20. How many payments from Date Put Into Service/Go-Live Date (#14) to Subscription End Date including Extensions (#17)?
A157: - If payments are monthly, this answer will most likely be the same as the calculated number of months (#18). | B157: 14
A158: - Calculate the number of payments carefully if payments are not monthly.
A159: - If payments are Less Often than Annually, list the # of years of the lease term rather than the total # of payments (e.g. payment frequency every 5 years with a 20 year term would have a total of 4 payments, but enter 20 here instead of 4). Again, this is necessary for the Present Value Calculation to work. If this is the case, read PV Calc instructions (Steps #1f & 1g) carefully.
A163: 21. Was the first subscription payment made at the beginning or at the end of the first payment period?
A164: - The payment period is the length of time between payments - see frequency of payments in #19)? | B164: Begin
A165: - For example, subscription began on 4/1 with monthly payments and first payment was due 4/30, then it would be the end of the first payment period.
A167: - For a quarterly period, a payment due within the first 45 days of the quarter would be beginning of the period.
A168: Coding for Formulas - Begin = 1, End = 0 - HIDE THIS LINE IN FINAL VERSION | B168: =IF(B164="Begin",1,0) -> 1 | C168: =IF(C165="Begin",1,0) -> 0 | D168: =IF(D165="Begin",1,0) -> 0 | E168: 0 | F168: 0 | G168: 0 | H168: 0 | I168: 0 | J168: 0 | K168: 0 | L168: 0
A170: 22. When is the first subscription payment due AFTER the Go-Live Date?
A171: Per GASB 96, the Subscription Term does not begin until after the SBITA is put into service (Go-Live Date). Therefore, the first payment for the SBITA Liability Present Value Calculation does not occur until AFTER Go-Live. | B171: 2024-09-01
A173: Note: Subscription Payments made BEFORE the Go-Live Date should be reported in the Asset Adj tab (#2).
A175: V. SBITA Liability
A177: SBITA Payments - PLEASE SEPARATE PAYMENTS TO BE MADE BETWEEN #23, #24 & #25 as much as possible:
A178: 23. Fixed Subscription Payment - Enter FIRST Fixed Payment Amount here (first payment AFTER Go-Live Date)
A179: To calculate the Fixed Subscription Payment: | B179: 450000
A180: a. Start with the fixed subscription periodic payments stated in the contract.
A181: b. In addition, add "Fixed In-Substance Fees" to the above amount (see definition below under variable payments).
A182: c. For payments that depend on an index or a rate (such as the Consumer Price Index or a market interest rate), the payment should be initially measured using the index or rate published as of the start of the subscription term.
A184: d. EXCLUDE any variable usage fees and/or support/maintenance service fees included in the payment (see #24 & 25 below)
A185: Because payments may not remain the same throughout the subscription term, fill out the Payment Schedule on the PV Calc tab. A space is provided (Step #1g) to describe how often payments increase, formulas, etc.
A188: 24. Variable Usage Fees over and above Fixed In-Substance Fees (do NOT include variable fees on PV Calc tab)
A189: a. Variable usage fees include any part of the fee calculated on a usage basis. For example, fees calculated as a quantity of users (cost per user) or total gigs of data used, etc. Per user fees are very common and could eliminate a SBITA entirely (if all fees are based on # of users, then there is no fixed cost), so please review pricing details very carefully. | B189: $50 per user fee
A192: b. "Fixed in-Substance Fees" are the Minimum Usage Costs of a variable usage fee and should be included in the fixed payment portion above. For Example, if a software subscription includes up to 5 gigs of data used for a set fee, but charges extra for every additional gig, the minimum fee for the first 5 gigs is the "Fixed In-Substance Fee", and the per gig fees above that minimum would be the variable fees. The "Fixed In-Substance Fee" should be added to the fixed payments above, and the variable fee would be described here as "$XX/gig used over 5 gigs". Please include how the fee is determined.
A198: 25. Support or Maintenance Service Component of subscription agreement (do NOT include these service fees on PV Calc tab)
A199: a. A service component of a subscription agreement could be, for example, IT Support, Maintenance, Helpline, Troubleshooting, etc. List amount of services periodic payment here (if it changes, list the first payment amount) | B199: =B179*0.025+1200 -> 12450
A202: b. Please briefly describe the additional charges. | B202: Troubleshooting/Help Services through phone or chat
A204: 26. Termination penalties:
A205: a. Is there a termination penalty if the subscription is terminated before the end of the subscription term? | B205: No
A207: b. If so, is the agency reasonably certain to terminate the subscription early?
A208: Answer Yes only if the agency believes that a fiscal funding clause or termination clause will be exercised and there will be a penalty assessed if it is. | B208: N/A
A210: If Yes, then enter the termination penalty on the PV Calc tab.
A212: 27. Subscription incentives (during subscription term):
A213: a. Does the subscription agreement contain incentives that will occur AFTER the start of the subscription term? | B213: No
A214: i. For example, Abated or Free Subscription periods,
A215: ii. Reductions in subscription payments,
A216: iii. Bonus amounts paid from the SBITA Vendor to the State, etc?
A218: b. If Yes, please describe: | B218: N/A
A219: If applicable, read instructions on PV Calc tab carefully on how to include subscription incentives in the Payment Schedule (Steps #1d & 1e).
A222: VI. Interest Rate
A223: 28. Enter the interest rate for the SBITA using one of the three methods listed below:
A224: a. If the interest rate is specifically identified in the contract (explicit rate), use this rate.
A225: b. If the explicit rate is unknown, there may be an implicit rate (please see tab, "Implicit Rate info" for additional information and a place to enter the information to calculate it).
A227: c. If both the explicit interest rate and implicit rate are unknown, identify the interest rate in the table below using the subscription term (total subscription term in months is copied here from #18 above for ease of reference). | B227: =B147 -> 84 | C227: 1 | D227: 1 | E227: 1 | F227: 1 | G227: 1 | H227: 1 | I227: 1 | J227: 1 | K227: 1 | L227: 1
A229: For example: If initial contract term was 3 years (36 months) plus a 2-year (24 month) extension, for a total of 5 years (60 months) use the Mid-Term rate below. | B229: 0.033607
A232: Short-Term in months = 0 - 59 months
A233: Mid-Term in months = 60 - 107 months
A234: Long-Term in months = 108 months or longer
A236: The interest rates have been updated for
A237: FY2025 & will be reassesed each year.
A239: 29. Periodic Interest Rate - based on frequency of payments (will automatically fill) | B239: =ROUND(B229/B154,6) -> 0.016804 | C239: 0 | D239: 0 | E239: 0 | F239: 0 | G239: 0 | H239: 0 | I239: 0 | J239: 0 | K239: 0 | L239: 0
A241: VII. Calculate the SBITA Liability & Asset
A242: 30. Fill out the Subscription Payment Schedule on the "PV Calc" tab corresponding to the correct SBITA #.
A243: The Present Value of the SBITA Liability, Amortization Table and SBITA Asset Cost will be calculated in each respective PV Calc tab. These are calculated with macros, and are not required to be completed by the agencies. | B243: Example - PV Calc | C243: SBITA # 1 - PV Calc | D243: SBITA # 2 - PV Calc | E243: SBITA # 3 - PV Calc | F243: SBITA # 4 - PV Calc | G243: SBITA # 5 - PV Calc | H243: SBITA # 6 - PV Calc | I243: SBITA # 7 - PV Calc | J243: SBITA # 8 - PV Calc | K243: SBITA # 9 - PV Calc | L243: SBITA # 10 - PV Calc
A245: - At a minimum, however, the Subscription Payment Schedule must be completed.

Sheet Subscrptn Split
A1: GASB 96 SBITA Collection Form - Subscription Split Info - for SBITAs paid from multiple sources
A2: If a SBITA has more than one funding source for the payments during the subscription term, please complete the information below.
A4: Note 1 - The Teal highlighted cells are for manual or drop-down input. The Orange highlighted cells contain formulas and will automatically fill. Please do not change the Orange cells.
A6: Note 2 - If the Agency divides out the SBITA payment with a Cost Allocation Function (or divides it out to more than the 4 lines provided), then ONLY provide the breakout for the 3 REQUIRED COA Elements to reduce the number of lines needed to be reported. The other COA elements may be important for agency or unit internal reporting, but is not necessary for reporting at the ACFR level.
A9: Note 3 - Only provide split information for the Fixed Subscription amount to be paid (#23 on Data Input tab). Exclude the COAs (if different) for any variable payments (#24) or payments for services, maintenance, etc (#25) that are identified separately within the SBITA contract.
A12: Use the SAME COLUMN here as was used in the "Data Input" tab. | B12: Example | C12: SBITA # 1 | D12: SBITA # 2 | E12: SBITA # 3 | F12: SBITA # 4 | G12: SBITA # 5 | H12: SBITA # 6 | I12: SBITA # 7 | J12: SBITA # 8 | K12: SBITA # 9 | L12: SBITA # 10
A13: Contract # (#1a from Data Input tab) | B13: ='Data Input'!B56 -> ADA2501 | C13: ='Data Input'!C56 -> 0 | D13: ='Data Input'!D56 -> 0 | E13: ='Data Input'!E56 -> 0 | F13: ='Data Input'!F56 -> 0 | G13: ='Data Input'!G56 -> 0 | H13: ='Data Input'!H56 -> 0 | I13: ='Data Input'!I56 -> 0 | J13: ='Data Input'!J56 -> 0 | K13: ='Data Input'!K56 -> 0 | L13: ='Data Input'!L56 -> 0
A15: Is the subscription payment divided by a Percentage (%), or a Specific Dollar ($) Amount (i.e. 50% paid by one Source, and 50% paid by another Source; or first $1,000 paid by a Grant, the remainder paid by another Source)? | B15: Percentage (%)
A17: Based on your answer, please fill out the proper section below (Percentage or Dollar Amount Split)
A19: Percentage (%) Split:
A20: How many Sources are there (how many funding lines in your SBITA payment)? | B20: 2
A22: 1. Percentage of funding from First Source | B22: 0.7
A23: Please provide COA for First Funding Source below. REQUIRED elements are starred (*). Use any other COA indicated below that will help identify the payments made for each lease.
A25: 1a. Agency * | B25: ADA
A26: 1b. Fund * | B26: AD1234
A27: 1c. Object * | B27: 7160
A28: 1d. Appropriation
A29: 1e. Unit
A30: 1f. Task
A31: 1g. Sub Task
A32: 1h. Program
A33: 1i. Phase
A34: 1j. Program Period
A35: 1k. Dept Object
A37: 2. Percentage of funding from Second Source | B37: 0.3
A38: Please provide COA for Second Funding Source below. REQUIRED elements are starred (*). Use any other COA indicated below that will help identify the payments made for each lease.
A40: 2a. Agency * | B40: ADA
A41: 2b. Fund * | B41: 1000
A42: 2c. Object * | B42: 7160
A43: 2d. Appropriation
A44: 2e. Unit
A45: 2f. Task
A46: 2g. Sub Task
A47: 2h. Program
A48: 2i. Phase
A49: 2j. Program Period
A50: 2k. Dept Object
A52: 3. Percentage of funding from Third Source
A53: Please provide COA for Third Funding Source below. REQUIRED elements are starred (*). Use any other COA indicated below that will help identify the payments made for each lease.
A55: 3a. Agency *
A56: 3b. Fund *
A57: 3c. Object *
A58: 3d. Appropriation
A59: 3e. Unit
A60: 3f. Task
A61: 3g. Sub Task
A62: 3h. Program
A63: 3i. Phase
A64: 3j. Program Period
A65: 3k. Dept Object
A67: 4. Percentage of funding from Fourth Source
A68: Please provide COA for Fourth Funding Source below. REQUIRED elements are starred (*). Use any other COA indicated below that will help identify the payments made for each lease.
A70: 4a. Agency *
A71: 4b. Fund *
A72: 4c. Object *
A73: 4d. Appropriation
A74: 4e. Unit
A75: 4f. Task
A76: 4g. Sub Task
A77: 4h. Program
A78: 4i. Phase
A79: 4j. Program Period
A80: 4k. Dept Object
A82: Specific Dollar ($) Amount Split:
A83: How many Sources are there (how many funding lines in your SBITA payment)?
A85: 1. Amount of funding from First Source
A86: Please provide COA for First Funding Source below. REQUIRED elements are starred (*). Use any other COA indicated below that will help identify the payments made for each lease.
A88: 1a. Agency *
A89: 1b. Fund *
A90: 1c. Object *
A91: 1d. Appropriation
A92: 1e. Unit
A93: 1f. Task
A94: 1g. Sub Task
A95: 1h. Program
A96: 1i. Phase
A97: 1j. Program Period
A98: 1k. Dept Object
A100: 2. Amount of funding from Second Source
A101: Please provide COA for Second Funding Source below. REQUIRED elements are starred (*). Use any other COA indicated below that will help identify the payments made for each lease.
A103: 2a. Agency *
A104: 2b. Fund *
A105: 2c. Object *
A106: 2d. Appropriation
A107: 2e. Unit
A108: 2f. Task
A109: 2g. Sub Task
A110: 2h. Program
A111: 2i. Phase
A112: 2j. Program Period
A113: 2k. Dept Object
A115: 3. Amount of funding from Third Source
A116: Please provide COA for Third Funding Source below. REQUIRED elements are starred (*). Use any other COA indicated below that will help identify the payments made for each lease.
A118: 3a. Agency *
A119: 3b. Fund *
A120: 3c. Object *
A121: 3d. Appropriation
A122: 3e. Unit
A123: 3f. Task
A124: 3g. Sub Task
A125: 3h. Program
A126: 3i. Phase
A127: 3j. Program Period
A128: 3k. Dept Object
A130: 4. Amount of funding from Fourth Source
A131: Please provide COA for Fourth Funding Source below. REQUIRED elements are starred (*). Use any other COA indicated below that will help identify the payments made for each lease.
A133: 4a. Agency *
A134: 4b. Fund *
A135: 4c. Object *
A136: 4d. Appropriation
A137: 4e. Unit
A138: 4f. Task
A139: 4g. Sub Task
A140: 4h. Program
A141: 4i. Phase
A142: 4j. Program Period
A143: 4k. Dept Object

Sheet Asset Adj
A1: GASB 96 SBITA Collection Form - Asset Adjustments
A2: If a SBITA has additional costs or incentives at or before the In-Service (or Go-Live) Date, the Subscription Asset will need to be adjusted.
A4: Per GASB 96, the SBITA Asset cost =
A5: + Initial SBITA Liability (calculated in PV calc tab)
A6: Plus/Minus Asset Adjustments:
A7: - Incentives from SBITA Vendor received at or before Go-Live Date (i.e. to buy out a preexisting obligation or reimburse certain implementation costs)
B8: Example - Asset Adj Please fully read instructions to the left | C8: SBITA # 1 - Asset Adj Please fully read instructions to the left before filling in requested information below | D8: SBITA # 2 - Asset Adj Please fully read instructions to the left before filling in requested information below | E8: SBITA # 3 - Asset Adj Please fully read instructions to the left before filling in requested information below | F8: SBITA # 4 - Asset Adj Please fully read instructions to the left before filling in requested information below | G8: SBITA # 5 - Asset Adj Please fully read instructions to the left before filling in requested information below | H8: SBITA # 6 - Asset Adj Please fully read instructions to the left before filling in requested information below | I8: SBITA # 7 - Asset Adj Please fully read instructions to the left before filling in requested information below | J8: SBITA # 8 - Asset Adj Please fully read instructions to the left before filling in requested information below | K8: SBITA # 9 - Asset Adj Please fully read instructions to the left before filling in requested information below | L8: SBITA # 10 - Asset Adj Please fully read instructions to the left before filling in requested information below
A9: + Payments made to SBITA Vendor at or before Go-Live Date (i.e. downpayment or subscription payments before Go-Live Date)
A11: + Capitalizable Implementation Costs (includes staff time, consultation costs and any other costs related to implementation)
A14: There are 3 phases to software implementation, but not all phases are capitalizable:
A15: 1. Preliminary Project Stage | B15: EXPENSE
A16: Includes - The conceptual formulation and evaluation of alternatives,
A17: - The determination of the existence of needed technology, and
A18: - The final selection of alternatives for the SBITA (including contract negotiations)
A19: 2. Initial Implementation Stage | B19: CAPITALIZE
A20: Includes - Ancillary charges related to designing the chosen path (configuration, coding, testing & installation), and
A21: - Other charges necessary to place the subscription asset into service
A22: Types of costs that might occur in this stage - Consulting fees from the SBITA Vendor &/or a third party consultant,
A23: - Internal Staff Time related to the activities described above
A24: This stage is complete when the SBITA Asset is placed into service (Go-Live Date)
A25: EXCLUSIONS from Capitalizable Implementation Costs: TRAINING | B25: EXPENSE
A26: Always expense training costs, whether during the initial implementation stage or operational stage
A27: 3. Operation & Additional Implementation Stage | B27: Expense or Capitalize (see below)
A29: a. Maintenance, troubleshooting, & other activities associated with the government's ongoing access to the underlying IT assets &/or SBITA asset. | B29: EXPENSE
A31: b. Additional implementation activities such as costs related to additional Modules or Upgrades for the software not yet in service or upgrades | B31: CAPITALIZE
A33: Note: If possible, the State would prefer to track separate modules as separate SBITAs, but will add to the original asset if it is not possible to determine how to split the contract into those separate components. | B33: Contact the GAAP Group to discuss if relavent
A36: Note 1 - The Teal highlighted cells are for manual or drop-down input. The Orange highlighted cells contain formulas and will automatically fill. Please do not change the Orange cells.
A37: Note 2 - If there are any amounts reported on this tab, you MUST attach Documentation (i.e. reports from AZ360) totaling the adjustments reported below for the current fiscal year. The backup should include the required COA elements listed below as well as the Date & FY of the transactions. If not recorded in AZ360, may attach invoices from the vendor for additional costs, or evidence of incentives received if paid to a third party.
A38: Note 3 - Object 8485 - SBITA Implementation (a Capital Outlay acct) has been created to track Capitalizable Implementatiom Costs paid to the SBITA Vendor or a 3rd party consultant.
A40: **Object 8485 - SBITA Implementation is suggested, but not required, for recording Capitalizable Implementation Costs for SBITAs**
A42: Use the SAME COLUMN here as was used in the "Data Input" tab. | B42: Example | C42: SBITA # 1 | D42: SBITA # 2 | E42: SBITA # 3 | F42: SBITA # 4 | G42: SBITA # 5 | H42: SBITA # 6 | I42: SBITA # 7 | J42: SBITA # 8 | K42: SBITA # 9 | L42: SBITA # 10
A43: Contract # (#1a from Data Input tab) | B43: ='Data Input'!B56 -> ADA2501 | C43: ='Data Input'!C56 -> 0 | D43: ='Data Input'!D56 -> 0 | E43: ='Data Input'!E56 -> 0 | F43: ='Data Input'!F56 -> 0 | G43: ='Data Input'!G56 -> 0 | H43: ='Data Input'!H56 -> 0 | I43: ='Data Input'!I56 -> 0 | J43: ='Data Input'!J56 -> 0 | K43: ='Data Input'!K56 -> 0 | L43: ='Data Input'!L56 -> 0
A45: Are there any adjustments for measurement of the SBITA Asset? (#10 from Data Input tab) | B45: ='Data Input'!B106 -> Yes - Fill out on Asset Adj Tab | C45: ='Data Input'!C106 -> 0 | D45: ='Data Input'!D106 -> 0 | E45: ='Data Input'!E106 -> 0 | F45: ='Data Input'!F106 -> 0 | G45: ='Data Input'!G106 -> 0 | H45: ='Data Input'!H106 -> 0 | I45: ='Data Input'!I106 -> 0 | J45: ='Data Input'!J106 -> 0 | K45: ='Data Input'!K106 -> 0 | L45: ='Data Input'!L106 -> 0
A47: Contract Start Date (#13 from Data Input tab)
A48: It is possible to have adjustments to the SBITA Asset even without an implementation period as not all adjustment items listed above are related to implementation. | B48: ='Data Input'!B129 -> 2024-09-01 | C48: ='Data Input'!C129 -> 00:00:00 | D48: ='Data Input'!D129 -> 00:00:00 | E48: ='Data Input'!E129 -> 00:00:00 | F48: ='Data Input'!F129 -> 00:00:00 | G48: ='Data Input'!G129 -> 00:00:00 | H48: ='Data Input'!H129 -> 00:00:00 | I48: ='Data Input'!I129 -> 00:00:00 | J48: ='Data Input'!J129 -> 00:00:00 | K48: ='Data Input'!K129 -> 00:00:00 | L48: ='Data Input'!L129 -> 00:00:00
A51: Date Put Into Service/Go-Live Date (#14 from Data Input tab)
A52: If SBITA is not yet in service, this is the ESTIMATED Go-Live Date per the contract | B52: ='Data Input'!B132 -> 2025-09-01 | C52: ='Data Input'!C132 -> 00:00:00 | D52: ='Data Input'!D132 -> 00:00:00 | E52: ='Data Input'!E132 -> 00:00:00 | F52: ='Data Input'!F132 -> 00:00:00 | G52: ='Data Input'!G132 -> 00:00:00 | H52: ='Data Input'!H132 -> 00:00:00 | I52: ='Data Input'!I132 -> 00:00:00 | J52: ='Data Input'!J132 -> 00:00:00 | K52: ='Data Input'!K132 -> 00:00:00 | L52: ='Data Input'!L132 -> 00:00:00
A54: 1. Incentives from the SBITA Vendor
A55: a. Per the description above, were any incentives received from the SBITA Vendor AT or BEFORE the Go-Live Date (could be during the implementation period)? | B55: No
A58: b. If YES, please describe [if incentive from SBITA Vendor was paid to a 3rd party (i.e. to buy out a preexisting obligation), please provide details here] | B58: N/A
A61: c. Amount received (or deemed received) DURING FY2025 (7/1/2024 - 6/30/2025) | B61: 0
A62: - Please enter COA info below
A63: d. Amount EXPECTED TO BE received (or deemed received) in a future year (7/1/2025 or later) but before Go-Live Date | B63: 0
A66: e. Please provide COA for any incentives received from the SBITA Vendor in 1c. above (received during FY2025). REQUIRED elements are starred (*). Use any other COA indicated below that will help identify the payments made for each SBITA.
A69: Note: If incentive was paid directly to a 3rd party AND was not recorded into AZ360, please explain here | B69: N/A
A71: 1ei. Agency *
A72: 1eii. Fund *
A73: 1eiii. Revenue or Object (please indicate which) *
A74: 1eiv. Appropriation
A75: 1ev. Unit
A76: 1evi. Task
A77: 1evii. Sub Task
A78: 1eviii. Program
A79: 1eix. Phase
A80: 1ex. Program Period
A81: 1exi. Dept Object
A83: 2. Payments made to the SBITA Vendor at or before the Go-Live Date NOT related to implementation (i.e. Downpayment or Subscription Payments made before Go-Live Date)
A85: a. Per the description above, were any payments made to the SBITA Vendor AT or BEFORE the Go-Live Date (could be during the implementation period)? | B85: Yes
A88: b. If YES, please describe the nature of the payments | B88: 1st Subscription Payment was during implementation period
A90: c. Amount paid DURING FY2025 (7/1/2024 - 6/30/2025) | B90: 450000
A91: - Please enter COA info below
A92: d. Amount EXPECTED TO BE paid in a future year (7/1/2025 or later) but before Go-Live Date (i.e. additional subscription payments due before expected Go-Live Date). | B92: 0
A95: e. Please provide COA for amounts listed in 2c. above (paid during FY2025). REQUIRED elements are starred (*). Use any other COA indicated below that will help identify the payments made for each SBITA.
A97: 2ei. Agency * | B97: ADA
A98: 2eii. Fund * | B98: AD1234
A99: 2eiii. Object * | B99: 7160
A100: 2eiv. Appropriation
A101: 2ev. Unit
A102: 2evi. Task
A103: 2evii. Sub Task
A104: 2eviii. Program
A105: 2eix. Phase
A106: 2ex. Program Period
A107: 2exi. Dept Object
A109: 3. Payments made to the SBITA Vendor and/or a 3rd party at or before the Go-Live Date related to Capitalizable Implementation Costs
A111: Note: If SBITA was previously excluded due to not meeting the materiality threshold, but now qualifies due to a significant modification AND this modification includes an UPGRADE or New MODULE, please include the Capitalizable Implementation Costs of the Upgrade here (described in Phase 3b. of the instructions above).
A115: a. Per the description above, were any payments made to the SBITA Vendor or a 3rd party consultant that qualify as Capitalizable Implementation Costs? | B115: Yes - to 3rd party consultant
A118: b. If YES, please describe the nature of the payments & name of vendor if a 3rd party consultant | B118: Implementation consultants - Conversion Wizards, Inc
A120: c. Amount paid DURING FY2025 (7/1/2024 - 6/30/2025) | B120: 1200000
A121: - Please enter COA info below
A122: d. If implementation is not yet complete, amount EXPECTED TO BE PAID in the future (7/1/2025 or later) but BEFORE Go-Live Date | B122: 500000
A125: e. Please provide COA for amounts listed in 3c. above (paid during FY2025). REQUIRED elements are starred (*). Use any other COA indicated below that will help identify the payments made for each SBITA.
A127: 3ei. Agency * | B127: ADA
A128: 3eii. Fund * | B128: AD1234
A129: 3eiii. Object * | B129: 8485
A130: (Object 8485 - SBITA Implementation has been set up for this, but please provide actual acct used)
A131: 3eiv. Appropriation
A132: 3ev. Unit
A133: 3evi. Task
A134: 3evii. Sub Task
A135: 3eviii. Program
A136: 3eix. Phase
A137: 3ex. Program Period
A138: 3exi. Dept Object
A140: 4. Internal Staff Costs that qualify as Capitalizable Implementation Costs
A141: a. Per the description above, did any staff time qualify as capitalizable implementation costs and, if so, was that time tracked? | B141: Yes & was tracked
A143: Note: DO NOT Include any Staff Training Time in the calculations for this item
A145: b. If Yes & it was tracked, please describe the specific method used for tracking the time (i.e. specific coding by staff when reporting on their time sheets, tracking manually on a spreadsheet, etc) | B145: Used Program 1111 on all implementation-related time
A149: c. If Yes & it was NOT tracked, can a reasonable estimate be made? | B149: N/A
A150: - If Yes, please provide estimate below. Also, include calculations & methodology in the documentation.
A152: d. Internal Staff Implementation Costs paid DURING FY2025 (7/1/2024 - 6/30/2025) | B152: 25480
A153: - Please enter COA info below (if possible)
A154: e. If implementation is not yet complete, Estimated Staff Costs EXPECTED TO BE INCURRED in the future (7/1/2025 or later) but BEFORE Go-Live Date | B154: 5000
A157: f. If staff time was tracked with a special code in AZ360, please provide the COA for amounts listed in 4d. above (paid during FY2025). REQUIRED elements are starred (*). Use any other COA indicated below that will help identify the the staff costs. If there are multiple COAs related to staff time (payroll), please ensure that the COAs are included in the backup documentation and notate it here with "Various - see backup".
A161: 4fi. Agency * | B161: ADA
A162: 4fii. Fund * | B162: 1000
A163: 4fiii. Object * | B163: Various PR accts - see backup
A164: 4fiv. Appropriation
A165: 4fv. Unit
A166: 4fvi. Task
A167: 4fvii. Sub Task
A168: 4fviii. Program | B168: Program 1111 was used to ID all staff time related to implementation
A169: 4fix. Phase
A170: 4fx. Program Period
A171: 4fxi. Dept Object
A174: 5. Total Asset Adjustment Costs/Incentives paid/received DURING FY2025 | B174: =-B61+B90+B120+B152 -> 1675480 | C174: 0 | D174: 0 | E174: 0 | F174: 0 | G174: 0 | H174: 0 | I174: 0 | J174: 0 | K174: 0 | L174: 0
A175: 6. Total ESTIMATED Asset Adjustment Costs/Incentives YET TO BE PAID (FY2026 to the end of implementation period) | B175: =-B63+B92+B122+B154 -> 505000 | C175: 0 | D175: 0 | E175: 0 | F175: 0 | G175: 0 | H175: 0 | I175: 0 | J175: 0 | K175: 0 | L175: 0
A177: 7. Based on Go-Live Date, is the Total as of 6/30/2025 the Final Adj Amount or still Development in Process? | B177: =IF(B52<B178,"FINAL Adj Amount","Development in Progress") -> Development in Progress | C177: =IF(C52<$B178,"FINAL Adj Amount","Development in Progress") -> FINAL Adj Amount | D177: FINAL Adj Amount | E177: FINAL Adj Amount | F177: FINAL Adj Amount | G177: FINAL Adj Amount | H177: FINAL Adj Amount | I177: FINAL Adj Amount | J177: FINAL Adj Amount | K177: FINAL Adj Amount | L177: FINAL Adj Amount
A178: Last day of current FY - Hide in final version | B178: 2025-06-30
A179: Note: If Implementation Period is not yet complete, then only a Development in Progress (DIP) Asset will be recognized at this point. The SBITA Liability & SBITA Asset will not be recognized until the SBITA is Put in Service/Go-Live Date. If this is the case, please continue to track all Implementation Costs. This info will be requested in future years through the annual Activity Form.
A183: In addition, please DO NOT ENTER ANY SBITA DEVELOPMENT IN PROGRESS (DIP) or IMPLEMENTATION COSTS INTO AZ360 as Fixed Assets. Because a SBITA Asset includes the asset adjustments listed above PLUS the Present Value of the Fixed Payments (Liability), it all needs to be calculated manually.

Sheet Implicit Rate info
A1: GASB 96 SBITA Collection Form - Calculating an Implicit Rate on a SBITA
A3: If an interest rate is not explicitely stated within the SBITA contract, there may be an implicit rate, which can be calculated if the information requested below is available.
A6: In addition to the information provided within the Data Input tab (see orange auto-filled cells below), check the SBITA contract for availability of the 3 additional data items requested below to determine the Implicit Rate.
A9: All 3 items requested below are needed to calculate the Implicit Rate. If this information is unavailable, then use the Discount Rates provided on the Data Input tab (yellow highlighted table).
A12: If ALL of the information requested below is available for a SBITA, please enter the information within the correct SBITA # column below.
A14: Note - The Teal highlighted cells are for manual input. The Orange highlighted cells contain formulas and will automatically fill. Please do not change the Orange cells.
A17: Use the SAME COLUMN here as was used in the "Data Input" tab. | B17: Example | C17: SBITA # 1 | D17: SBITA # 2 | E17: SBITA # 3 | F17: SBITA # 4 | G17: SBITA # 5 | H17: SBITA # 6 | I17: SBITA # 7 | J17: SBITA # 8 | K17: SBITA # 9 | L17: SBITA # 10
A18: Contract # (Section II, #1a of Data Input Tab) | B18: ='Data Input'!B56 -> ADA2501 | C18: ='Data Input'!C56 -> 0 | D18: ='Data Input'!D56 -> 0 | E18: ='Data Input'!E56 -> 0 | F18: ='Data Input'!F56 -> 0 | G18: ='Data Input'!G56 -> 0 | H18: ='Data Input'!H56 -> 0 | I18: ='Data Input'!I56 -> 0 | J18: ='Data Input'!J56 -> 0 | K18: ='Data Input'!K56 -> 0 | L18: ='Data Input'!L56 -> 0
A19: Cash Flows at Beginning or End (Section IV, #21 of Data Input tab) | B19: ='Data Input'!B164 -> Begin | C19: ='Data Input'!C165 -> 0 | D19: ='Data Input'!D165 -> 0 | E19: ='Data Input'!E165 -> 0 | F19: ='Data Input'!F165 -> 0 | G19: ='Data Input'!G165 -> 0 | H19: ='Data Input'!H165 -> 0 | I19: ='Data Input'!I165 -> 0 | J19: ='Data Input'!J165 -> 0 | K19: ='Data Input'!K165 -> 0 | L19: ='Data Input'!L165 -> 0
A20: Number of payments (Section IV, #20 of Data Input tab) | B20: ='Data Input'!B157 -> 14 | C20: ='Data Input'!C157 -> 0 | D20: ='Data Input'!D157 -> 0 | E20: ='Data Input'!E157 -> 0 | F20: ='Data Input'!F157 -> 0 | G20: ='Data Input'!G157 -> 0 | H20: ='Data Input'!H157 -> 0 | I20: ='Data Input'!I157 -> 0 | J20: ='Data Input'!J157 -> 0 | K20: ='Data Input'!K157 -> 0 | L20: ='Data Input'!L157 -> 0
A21: Frequency of payments (Section IV, #19 of Data Input tab) | B21: ='Data Input'!B150 -> Semi-annually | C21: ='Data Input'!C150 -> 0 | D21: ='Data Input'!D150 -> 0 | E21: ='Data Input'!E150 -> 0 | F21: ='Data Input'!F150 -> 0 | G21: ='Data Input'!G150 -> 0 | H21: ='Data Input'!H150 -> 0 | I21: ='Data Input'!I150 -> 0 | J21: ='Data Input'!J150 -> 0 | K21: ='Data Input'!K150 -> 0 | L21: ='Data Input'!L150 -> 0
A22: Date of first payment (Section IV, #22 of Data Input tab) | B22: ='Data Input'!B171 -> 2024-09-01 | C22: ='Data Input'!C171 -> 00:00:00 | D22: ='Data Input'!D171 -> 00:00:00 | E22: ='Data Input'!E171 -> 00:00:00 | F22: ='Data Input'!F171 -> 00:00:00 | G22: ='Data Input'!G171 -> 00:00:00 | H22: ='Data Input'!H171 -> 00:00:00 | I22: ='Data Input'!I171 -> 00:00:00 | J22: ='Data Input'!J171 -> 00:00:00 | K22: ='Data Input'!K171 -> 00:00:00 | L22: ='Data Input'!L171 -> 00:00:00
A23: Date Put Into Service/Go-Live Date (Section IV, #14 of Data Input tab) | B23: ='Data Input'!B132 -> 2025-09-01 | C23: ='Data Input'!C132 -> 00:00:00 | D23: ='Data Input'!D132 -> 00:00:00 | E23: ='Data Input'!E132 -> 00:00:00 | F23: ='Data Input'!F132 -> 00:00:00 | G23: ='Data Input'!G132 -> 00:00:00 | H23: ='Data Input'!H132 -> 00:00:00 | I23: ='Data Input'!I132 -> 00:00:00 | J23: ='Data Input'!J132 -> 00:00:00 | K23: ='Data Input'!K132 -> 00:00:00 | L23: ='Data Input'!L132 -> 00:00:00
A24: Subscription End Date including Extensions (Section IV, #17 of Data Input tab) | B24: ='Data Input'!B145 -> 2032-08-31 | C24: ='Data Input'!C145 -> 00:00:00 | D24: ='Data Input'!D145 -> 00:00:00 | E24: ='Data Input'!E145 -> 00:00:00 | F24: ='Data Input'!F145 -> 00:00:00 | G24: ='Data Input'!G145 -> 00:00:00 | H24: ='Data Input'!H145 -> 00:00:00 | I24: ='Data Input'!I145 -> 00:00:00 | J24: ='Data Input'!J145 -> 00:00:00 | K24: ='Data Input'!K145 -> 00:00:00 | L24: ='Data Input'!L145 -> 00:00:00
A26: 1. Fair value of the software at commencement
A28: 2. Expected fair value of the software at the end of the subscription term
A30: 3. Any initial direct costs that the Software Vendor incurs
A32: IF THE IMPLICIT RATE INFO IS FILLED OUT ABOVE, please enter "See Implicit Rate Info tab" within the interest rate cell
A33: (Section VI, #28 of the Data Input tab).
A34: If information is provided above, the GAO office will calculate the Implicit Rate and the Present Value of the Lease.

Sheet How to Enable Macros
A1: YOUR EXCEL TRUST CENTER SETTINGS MUST BE MACRO-ENABLED TO RUN THE MACROS IN THIS FILE.
A2: (This file was created in Excel Version 2016)
A3: To enable settings:
A4: Go to File > Options > Trust Center > Trust Center Settings…
A5: Check "Enable all macros" and "Trust access to the VBA project object model" as shown below.

Sheet Example - PV Calc
A1: Present Value Calculations tab - Example (column B) | B1: Contract # | C1: ='Data Input'!B56 -> ADA2501 | E1: Present Value Table | J1: Amortization Table
A2: Periodic Interest Rate (Section VI, #28-29 from Data Input tab) | B2: ='Data Input'!B239 -> 0.016804 | E2: Period | F2: Payment Amount | G2: Present Value | J2: Period | K2: Date | L2: Beginning Balance | M2: Payment | N2: Principal | O2: Interest | P2: Ending Balance
A3: Cash Flows at Beginning or End (Section IV, #21) | B3: ='Data Input'!B164 -> Begin | C3: Important: | E3: 1 | F3: 450000 | G3: =F3 / (((1+$B$2)) ^ (E3-1)) -> 450000 | J3: 1 | K3: =B6 -> 2024-09-01 | L3: =B25 -> 6265627.926 | M3: 450000 | N3: =M3-O3 -> 450000 | O3: 0 | P3: =L3-N3 -> 5815627.926
A4: Number of payments (Section IV, #20) | B4: ='Data Input'!B157 -> 14 | C4: Do not insert/delete/move | E4: 2 | F4: 450000 | G4: 442563.1685 | J4: 2 | K4: =EDATE($B$6,6) -> 2025-03-01 | L4: =P3 -> 5815627.926 | M4: 450000 | N4: 352274.19 | O4: =ROUND(L4*$B$2,2) -> 97725.81 | P4: 5463353.736
A5: Frequency of payments (Section IV, #19) | B5: ='Data Input'!B150 -> Semi-annually | C5: cells B2:B8 | E5: 3 | F5: 450000 | G5: 435249.2403 | J5: 3 | K5: =EDATE($B$6,12) -> 2025-09-01 | L5: 5463353.736 | M5: 450000 | N5: 358193.8 | O5: 91806.2 | P5: 5105159.936
A6: Date of first payment (Section IV, #22) | B6: ='Data Input'!B171 -> 2024-09-01 | C6: (macros depend on them) | E6: 4 | F6: 450000 | G6: 428056.1842 | J6: 4 | K6: =EDATE($B$6,18) -> 2026-03-01 | L6: 5105159.936 | M6: 450000 | N6: 364212.89 | O6: 85787.11 | P6: 4740947.046
A7: Date Put Into Service/Go-Live Date (#14 from Data Input tab) | B7: ='Data Input'!B132 -> 2025-09-01 | E7: 5 | F7: 500000 | G7: 467757.7807 | J7: 5 | K7: =EDATE($B$6,24) -> 2026-09-01 | L7: 4740947.046 | M7: 500000 | N7: 420333.13 | O7: 79666.87 | P7: 4320613.916
A8: Subscription End Date including Extensions (Section IV, #17) | B8: ='Data Input'!B145 -> 2032-08-31 | E8: 6 | F8: 500000 | G8: 460027.4789 | J8: 6 | K8: =EDATE($B$6,30) -> 2027-03-01 | L8: 4320613.916 | M8: 500000 | N8: 427396.4 | O8: 72603.6 | P8: 3893217.516
E9: 7 | F9: 500000 | G9: 452424.9304 | J9: 7 | K9: =EDATE($B$6,36) -> 2027-09-01 | L9: 3893217.516 | M9: 500000 | N9: 434578.37 | O9: 65421.63 | P9: 3458639.146
A10: Fixed Subscription Payment Schedule (Section V, #23 & see instructions below): | B10: Amount | C10: # of Payments | E10: 8 | F10: 500000 | G10: 444948.0238 | J10: 8 | K10: =EDATE($B$6,42) -> 2028-03-01 | L10: 3458639.146 | M10: 500000 | N10: 441881.03 | O10: 58118.97 | P10: 3016758.116
A11: Payment Amount #1 & # of Payments at this amount | B11: 450000 | C11: 4 | E11: 9 | F11: 500000 | G11: 437594.6827 | J11: 9 | K11: =EDATE($B$6,48) -> 2028-09-01 | L11: 3016758.116 | M11: 500000 | N11: 449306.4 | O11: 50693.6 | P11: 2567451.716
A12: Payment Amount #2 & # of Payments at this amount | B12: 500000 | C12: 6 | E12: 10 | F12: 500000 | G12: 430362.8651 | J12: 10 | K12: =EDATE($B$6,54) -> 2029-03-01 | L12: 2567451.716 | M12: 500000 | N12: 456856.54 | O12: 43143.46 | P12: 2110595.176
A13: Payment Amount #3 & # of Payments at this amount | B13: 550000 | C13: 4 | E13: 11 | F13: 550000 | G13: 465575.619 | J13: 11 | K13: =EDATE($B$6,60) -> 2029-09-01 | L13: 2110595.176 | M13: 550000 | N13: 514533.56 | O13: 35466.44 | P13: 1596061.616
A14: Payment Amount #4 & # of Payments at this amount | B14: 0 | C14: 0 | E14: 12 | F14: 550000 | G14: 457881.3802 | J14: 12 | K14: =EDATE($B$6,66) -> 2030-03-01 | L14: 1596061.616 | M14: 550000 | N14: 523179.78 | O14: 26820.22 | P14: 1072881.836
A15: Totals from add'l table below (if needed) | B15: =B102 -> 0 | C15: =C102 -> 0 | E15: 13 | F15: 550000 | G15: 450314.2988 | J15: 13 | K15: =EDATE($B$6,72) -> 2030-09-01 | L15: 1072881.836 | M15: 550000 | N15: 531971.29 | O15: 18028.71 | P15: 540910.5456
A16: Total Subscription Payments (sum of all payment amounts * # of payments) | B16: =(B11*C11)+(B12*C12)+(B13*C13)+(B14*C14)+(B15) -> 7000000 | C16: =SUM(C11:C15) -> 14 | E16: 14 | F16: 550000 | G16: 442872.2731 | J16: 14 | K16: =EDATE($B$6,78) -> 2031-03-01 | L16: 540910.5456 | M16: 550000 | N16: 540910.54 | O16: 9089.46 | P16: 0.005625265883
A18: Other Payment Considerations: | C18: Answer per Data Input Tab
A19: Termination Penalty (Section V, #26) | B19: 0 | C19: ='Data Input'!B208 -> N/A
A21: Total Other Payment Considerations | B21: =SUM(B19:B20) -> 0
A22: Total Undiscounted Cash Flows (Total Payments + Other Considerations) | B22: =B16+B21 -> 7000000
C24: Important:
A25: Liability Net Present Value (calculated after Macros below run) | B25: =SUM(G:G) -> 6265627.926 | C25: Do not insert/delete/move
C26: NPV must be cell B25
C27: (macros depend on it)
A28: Asset Adjustments (from Asset Adj tab): | B28: Asset Adj Amount
A29: Total Asset Adjustments during Current Year | B29: ='Asset Adj'!B174 -> 1675480
A30: EXPECTED Future Asset Adjustments (if there is an amt here, s/b DIP) | B30: ='Asset Adj'!B175 -> 505000 | C30: DIP or Final?
A31: Total Asset Adjustment | B31: =SUM(B29:B30) -> 2180480 | C31: ='Asset Adj'!B177 -> Development in Progress
A34: SBITA Asset Cost (calculated after Macros below run) | B34: =IF(C31="FINAL Adj Amount",B25+B31,"Not yet determined") -> Not yet determined
A36: The Agency is not required to calculate the Present Value and/or enable Macros,
A37: but Steps 1 & 2 of the instructions below are REQUIRED to be completed.
A38: After completing Steps 1 & 2, if desired to calculate the Present Value, complete Steps 3 - 8:
A40: Note 1: First make sure your Excel settings are correct - | B40: See How to Enable Macros tab
A41: Note 2: Please do not Insert, Delete, or Move any cells, columns or rows as this could cause the Macros to fail.
A42: Note 3: The Teal Cells in columns B & C are for manual input, and the Present Value Table will need to be adjusted in column F.
A43: The Orange cells in columns B & C will automatically fill. The Present Value and Amortization Tables will be generated with the
A44: Macro buttons. Please do not make changes to the orange cells or anywhere within the Tables (except column F).
A46: Step 1 - Fill out the "Fixed Subscription Payment Schedule" above (starting on row 10).
A47: a - To calculate the Fixed Subscription Payment:
A48: i - Start with the fixed subscription periodic payments stated in the contract.
A49: ii - In addition, add "Fixed In-Substance Fees" to the above amount. "Fixed In-Substance Fees" are the Minimum Usage Costs of a variable
A50: usage fee. For Example, if a subscription includes up to 5 gigs of data used for a set fee, but charges extra for every additional gig, the
A51: minimum fee for the first 5 gigs is the "Fixed In-Substance Fee", and the per gig fees above that minimum would be the variable fees.
A52: iii - For payments that depend on an index or a rate (such as the Consumer Price Index or a market interest rate), the payment should be
A53: initially measured using the index or rate published as of the start of the subscription term.
A54: iv - EXCLUDE any variable usage fees and/or support/maintenance service fees included in the payment (see #24 & 25 in Data Input tab)
A55: b - If payments escalate over time, list the beginning payment amount (col B) & # of payments to be paid at that amount (col C), then
A56: move to line #2 and list the next payment amount & # of payments at that amount, etc.
A57: c - If an extension is deemed Reasonably Certain to be exercised, but the amount is listed as "negotiable", then use the fixed
A58: payment amount just prior to the date of extension for those unknown amounts.
A59: d - If there is an Abated or Free Rent period (skipped payment) indicated in the SBITA contract, | C59: Desc of Lease Incentives
A60: indicate that with a $0 payment amount (col B) & the number of payments to be skipped (col C). | C60: ='Data Input'!B218 -> N/A
A61: Make sure to put these skipped payments in the correct order chronologically. For example, if there
A62: is a skipped payment for payment 13, list the first 12 payments on the first line, then list line #2 as
A63: $0 (col B) and 1 (col C), then line #3 as the continuing payments after the skipped payment.
A64: e - If a Bonus payment from the SBITA Vendor is included in the contract, subtract that amount from the payment closest to the proper
A65: chronological period (as described in d above). This may cause that payment amount to be negative.
A66: f - If payments are Less Often than Annually,indicate this in the Payment Schedule above by listing the 1st payment on the 1st row & a 1 in
A67: col C, then the 2nd row should show how many years to be skipped in col C ($0 in col B), then the 3rd row will show the 2nd payment.
A68: Repeat until all payments & all years are represented in the Payment Schdl (total in col C should tie to total yrs of subscription term in
A69: cell B4).
A70: g - Use the Teal box below to add any extra details, how payments change over time (For example, (a) Payment increases 5% every 10 yrs;
A71: (b) Payment recalculated every 5 yrs based on CPI, etc.), or describe payment frequency if Less Often than Annually.
A72: Implementation Period not yet complete. No Liability or RTU Asset until FY2025 when subscription period begins. Only capitalize Development in Process for FY2024.
A75: h - If there are not enough lines in the Payment Schedule above, use the table below to input the additional payment amounts, and the
A76: totals from the additional table will automatically be added to the Payment Schedule above. Contact the GAAP Group if you need more
A77: than 25 lines.
A78: i - Verify that the total # of payments in cell B4 is the same as the sum of col C (cell C16).
A80: Additional Subscription Payment Lines (if needed) | B80: Amount | C80: # of Payments
A81: Payment Amount #5 & # of Payments at this amount | B81: 0 | C81: 0
A82: Payment Amount #6 & # of Payments at this amount | B82: 0 | C82: 0
A83: Payment Amount #7 & # of Payments at this amount | B83: 0 | C83: 0
A84: Payment Amount #8 & # of Payments at this amount | B84: 0 | C84: 0
A85: Payment Amount #9 & # of Payments at this amount | B85: 0 | C85: 0
A86: Payment Amount #10 & # of Payments at this amount | B86: 0 | C86: 0
A87: Payment Amount #11 & # of Payments at this amount | B87: 0 | C87: 0
A88: Payment Amount #12 & # of Payments at this amount | B88: 0 | C88: 0
A89: Payment Amount #13 & # of Payments at this amount | B89: 0 | C89: 0
A90: Payment Amount #14 & # of Payments at this amount | B90: 0 | C90: 0
A91: Payment Amount #15 & # of Payments at this amount | B91: 0 | C91: 0
A92: Payment Amount #16 & # of Payments at this amount | B92: 0 | C92: 0
A93: Payment Amount #17 & # of Payments at this amount | B93: 0 | C93: 0
A94: Payment Amount #18 & # of Payments at this amount | B94: 0 | C94: 0
A95: Payment Amount #19 & # of Payments at this amount | B95: 0 | C95: 0
A96: Payment Amount #20 & # of Payments at this amount | B96: 0 | C96: 0
A97: Payment Amount #21 & # of Payments at this amount | B97: 0 | C97: 0
A98: Payment Amount #22 & # of Payments at this amount | B98: 0 | C98: 0
A99: Payment Amount #23 & # of Payments at this amount | B99: 0 | C99: 0
A100: Payment Amount #24 & # of Payments at this amount | B100: 0 | C100: 0
A101: Payment Amount #25 & # of Payments at this amount | B101: 0 | C101: 0
A102: Total Add'l Subscription Payments (will automatically be added to the Schdl above) | B102: =(B81*C81)+(B82*C82)+(B83*C83)+(B84*C84)+(B85*C85)+(B86*C86)+(B87*C87)+(B88*C88)+(B89*C89)+(B90*C90)+(B91*C91)+(B92*C92)+(B93*C93)+(B94*C94)+(B95*C95)+(B96*C96)+(B97*C97)+(B98*C98)+(B99*C99)+(B100*C100)+(B101*C101) -> 0 | C102: =SUM(C81:C101) -> 0
A105: Step 2 - Fill out the "Other Payment Considerations" section (starting on row 18) ONLY if instructed to do so on the Data Input tab
A106: The Termination Penalty line should only have an amount listed if a termination clause is deemed Reasonably Certain to be exercised
A107: based on decisions by the Agency (response from the Data Input tab is shown in col C) AND this termination will cause a Penalty to be due.
A109: Steps 3 - 8 are OPTIONAL (calculation of Present Value and Amortization Tables)
A110: Step 3 - Click the Macro button below to Generate the first 2 columns of the Present Value (PV) Table.
A113: Step 4 - Using the Payment Schedule filled out in Steps 1 & 2, fill in the Payment Amounts into col F of the PV Table.
A114: a - If there are 12 payments for the 1st payment amount, and 6 payments for the 2nd payment amount, list the 1st amount in the
A115: first 12 rows of the Table, then the 2nd amount for the next 6 rows, and do the same for the remaining payment amounts listed
A116: in the Payment Schedule until all the payments are filled in on the Table.
A117: b - Make sure not to miss any Skipped Payment periods. If the Payment Schedule indicates the 13th payment is $0, then row 13 of the
A118: Table should be $0, same as the Payment Schedule.
A119: c - If there are any amounts listed for "Other Payment Considerations", add it to the final payment. For example, if the final
A120: payment is $20,000, and there is a Termination Penalty listed for $50,000, then the final payment in the Table should be $70,000.
A121: d - Check to make sure that the sum of all the payments entered into col F of the Table is the same as the Total Undiscounted Cash
A122: Flows in cell B22.
A124: Step 5 - Click the Macro button below to Calculate Net Present Value and Generate the PV and Amortization Tables.
A128: Step 6 - Check data for accuracy:
A129: a - Check the date of the final payment in the Amortization Table and compare to Subscription End Date in cell B8. Make sure the final
A130: payment date is reasonable in comparison to the subscription End Date (within same month if payments are Monthly, within the final
A131: quarter if Quarterly, etc).
A132: b - If payments change (there are amounts in Payment Amount #2 + rows), then check the dates the amounts change in the
A133: Amort Table (col K & M) to make sure the payments change on the correct dates as per the SBITA Contract.
A134: c - If 6a and 6b are BOTH correct, skip to Step 8 (Do NOT click the Start Over Macro Button).
A135: d - If 6a or 6b does not appear to be correct:
A136: i - Double-check the Instructions above (Steps 1 - 6), including the check for # of payments in 1i & check for Table payments in 4d.
A137: ii - Double-check cells B2-B8 by reviewing the SBITA Contract. These cells automatically filled based on answers in the Data Input
A138: tab. Make any necessary corrections in the Data Input tab (NOT in cells B2-B8) - the corresponding question #s are referenced above.
A139: iii - Double-Check the Payment Schedule and Other Payment Considerations sections. Compare back to the SBITA contract to
A140: verify, and correct as necessary.
A141: e - Once corrections have been made, click the Macro button below to Delete the PV & Amortization Tables.
A145: Step 7 - Repeat Steps 3-6 as needed until all checks (1i, 4d, 6a, 6b, and 6di-6diii) are correct.
A147: Step 8 - See Net Present Value calculated in cell B25 for the SBITA Liability and the SBITA Asset Cost in cell B34.
A148: Also, see Present Value Table in columns E-G,
A149: and Amortization Table in columns J-P.
A150: Note: If Implementation Period is not yet complete, then only a Development in Process Asset will be recognized at this point (cell B34 will
A151: return a value of "Not yet determined" if implementation is still in process & will also be noted as "Development in Process" in cell C31).
A152: The SBITA Liability & SBITA Asset will not be recognized until the SBITA is Put Into Service/Go-Live Date. If this is the case, please continue
A153: to track all Implementation Costs. This info will be requested in the following year's Closing Package Activity Form.
A155: Please DO NOT add SBITA implementation costs into the AZ360 Fixed Assets System. This will be done manually as the SBITA Asset
A156: includes not only the implementation costs, but also the Present Value of the Subscription Fixed Payments (Liability).

Sheet SBITA 1 - PV Calc
A1: Present Value Calculations tab - SBITA # 1 (column C) | B1: Contract # | C1: ='Data Input'!C56 -> 0
A2: Periodic Interest Rate (Section VI, #28-29 from Data Input tab) | B2: ='Data Input'!C239 -> 0
A3: Cash Flows at Beginning or End (Section IV, #21) | B3: ='Data Input'!C165 -> 0 | C3: Important:
A4: Number of payments (Section IV, #20) | B4: ='Data Input'!C157 -> 0 | C4: Do not insert/delete/move
A5: Frequency of payments (Section IV, #19) | B5: ='Data Input'!C150 -> 0 | C5: cells B2:B8
A6: Date of first payment (Section IV, #22) | B6: ='Data Input'!C171 -> 00:00:00 | C6: (macros depend on them)
A7: Date Put Into Service/Go-Live Date (#14 from Data Input tab) | B7: ='Data Input'!C132 -> 00:00:00
A8: Subscription End Date including Extensions (Section IV, #17) | B8: ='Data Input'!C145 -> 00:00:00
A10: Fixed Subscription Payment Schedule (Section V, #23 & see instructions below): | B10: Amount | C10: # of Payments
A11: Payment Amount #1 & # of Payments at this amount | B11: 0 | C11: 0
A12: Payment Amount #2 & # of Payments at this amount | B12: 0 | C12: 0
A13: Payment Amount #3 & # of Payments at this amount | B13: 0 | C13: 0
A14: Payment Amount #4 & # of Payments at this amount | B14: 0 | C14: 0
A15: Totals from add'l table below (if needed) | B15: =B102 -> 0 | C15: =C102 -> 0
A16: Total Subscription Payments (sum of all payment amounts * # of payments) | B16: =(B11*C11)+(B12*C12)+(B13*C13)+(B14*C14)+(B15) -> 0 | C16: =SUM(C11:C15) -> 0
A18: Other Payment Considerations: | C18: Answer per Data Input Tab
A19: Termination Penalty (Section V, #26) | B19: 0 | C19: ='Data Input'!C208 -> 0
A21: Total Other Payment Considerations | B21: =SUM(B19:B20) -> 0
A22: Total Undiscounted Cash Flows (Total Payments + Other Considerations) | B22: =B16+B21 -> 0
C24: Important:
A25: Liability Net Present Value (calculated after Macros below run) | B25: =SUM(G:G) -> 0 | C25: Do not insert/delete/move
C26: NPV must be cell B25
C27: (macros depend on it)
A28: Asset Adjustments (from Asset Adj tab): | B28: Asset Adj Amount
A29: Total Asset Adjustments during Current Year | B29: ='Asset Adj'!C174 -> 0
A30: EXPECTED Future Asset Adjustments (if there is an amt here, s/b DIP) | B30: ='Asset Adj'!C175 -> 0 | C30: DIP or Final?
A31: Total Asset Adjustment | B31: =SUM(B29:B30) -> 0 | C31: ='Asset Adj'!C177 -> FINAL Adj Amount
A34: Software Subscription Asset Cost (calculated after Macros below run) | B34: =IF(C31="FINAL Adj Amount",B25+B31,"Not yet determined") -> 0
A36: The Agency is not required to calculate the Present Value and/or enable Macros,
A37: but Steps 1 & 2 of the instructions below are REQUIRED to be completed.
A38: After completing Steps 1 & 2, if desired to calculate the Present Value, complete Steps 3 - 8:
A40: Note 1: First make sure your Excel settings are correct - | B40: See How to Enable Macros tab
A41: Note 2: Please do not Insert, Delete, or Move any cells, columns or rows as this could cause the Macros to fail.
A42: Note 3: The Teal Cells in columns B & C are for manual input, and the Present Value Table will need to be adjusted in column F.
A43: The Orange cells in columns B & C will automatically fill. The Present Value and Amortization Tables will be generated with the
A44: Macro buttons. Please do not make changes to the orange cells or anywhere within the Tables (except column F).
A46: Step 1 - Fill out the "Fixed Subscription Payment Schedule" above (starting on row 10).
A47: a - To calculate the Fixed Subscription Payment:
A48: i - Start with the fixed subscription periodic payments stated in the contract.
A49: ii - In addition, add "Fixed In-Substance Fees" to the above amount. "Fixed In-Substance Fees" are the Minimum Usage Costs of a variable
A50: usage fee. For Example, if a subscription includes up to 5 gigs of data used for a set fee, but charges extra for every additional gig, the
A51: minimum fee for the first 5 gigs is the "Fixed In-Substance Fee", and the per gig fees above that minimum would be the variable fees.
A52: iii - For payments that depend on an index or a rate (such as the Consumer Price Index or a market interest rate), the payment should be
A53: initially measured using the index or rate published as of the start of the subscription term.
A54: iv - EXCLUDE any variable usage fees and/or support/maintenance service fees included in the payment (see #24 & 25 in Data Input tab)
A55: b - If payments escalate over time, list the beginning payment amount (col B) & # of payments to be paid at that amount (col C), then
A56: move to line #2 and list the next payment amount & # of payments at that amount, etc.
A57: c - If an extension is deemed Reasonably Certain to be exercised, but the amount is listed as "negotiable", then use the fixed
A58: payment amount just prior to the date of extension for those unknown amounts.
A59: d - If there is an Abated or Free Rent period (skipped payment) indicated in the SBITA contract, | C59: Desc of Lease Incentives
A60: indicate that with a $0 payment amount (col B) & the number of payments to be skipped (col C). | C60: ='Data Input'!C218 -> 0
A61: Make sure to put these skipped payments in the correct order chronologically. For example, if there
A62: is a skipped payment for payment 13, list the first 12 payments on the first line, then list line #2 as
A63: $0 (col B) and 1 (col C), then line #3 as the continuing payments after the skipped payment.
A64: e - If a Bonus payment from the SBITA Vendor is included in the contract, subtract that amount from the payment closest to the proper
A65: chronological period (as described in d above). This may cause that payment amount to be negative.
A66: f - If payments are Less Often than Annually,indicate this in the Payment Schedule above by listing the 1st payment on the 1st row & a 1 in
A67: col C, then the 2nd row should show how many years to be skipped in col C ($0 in col B), then the 3rd row will show the 2nd payment.
A68: Repeat until all payments & all years are represented in the Payment Schdl (total in col C should tie to total yrs of subscription term in
A69: cell B4).
A70: g - Use the Teal box below to add any extra details, how payments change over time (For example, (a) Payment increases 5% every 10 yrs;
A71: (b) Payment recalculated every 5 yrs based on CPI, etc.), or describe payment frequency if Less Often than Annually.
A75: h - If there are not enough lines in the Payment Schedule above, use the table below to input the additional payment amounts, and the
A76: totals from the additional table will automatically be added to the Payment Schedule above. Contact the GAAP Group if you need more
A77: than 25 lines.
A78: i - Verify that the total # of payments in cell B4 is the same as the sum of col C (cell C16).
A80: Additional Subscription Payment Lines (if needed) | B80: Amount | C80: # of Payments
A81: Payment Amount #5 & # of Payments at this amount | B81: 0 | C81: 0
A82: Payment Amount #6 & # of Payments at this amount | B82: 0 | C82: 0
A83: Payment Amount #7 & # of Payments at this amount | B83: 0 | C83: 0
A84: Payment Amount #8 & # of Payments at this amount | B84: 0 | C84: 0
A85: Payment Amount #9 & # of Payments at this amount | B85: 0 | C85: 0
A86: Payment Amount #10 & # of Payments at this amount | B86: 0 | C86: 0
A87: Payment Amount #11 & # of Payments at this amount | B87: 0 | C87: 0
A88: Payment Amount #12 & # of Payments at this amount | B88: 0 | C88: 0
A89: Payment Amount #13 & # of Payments at this amount | B89: 0 | C89: 0
A90: Payment Amount #14 & # of Payments at this amount | B90: 0 | C90: 0
A91: Payment Amount #15 & # of Payments at this amount | B91: 0 | C91: 0
A92: Payment Amount #16 & # of Payments at this amount | B92: 0 | C92: 0
A93: Payment Amount #17 & # of Payments at this amount | B93: 0 | C93: 0
A94: Payment Amount #18 & # of Payments at this amount | B94: 0 | C94: 0
A95: Payment Amount #19 & # of Payments at this amount | B95: 0 | C95: 0
A96: Payment Amount #20 & # of Payments at this amount | B96: 0 | C96: 0
A97: Payment Amount #21 & # of Payments at this amount | B97: 0 | C97: 0
A98: Payment Amount #22 & # of Payments at this amount | B98: 0 | C98: 0
A99: Payment Amount #23 & # of Payments at this amount | B99: 0 | C99: 0
A100: Payment Amount #24 & # of Payments at this amount | B100: 0 | C100: 0
A101: Payment Amount #25 & # of Payments at this amount | B101: 0 | C101: 0
A102: Total Add'l Subscription Payments (will automatically be added to the Schdl above) | B102: =(B81*C81)+(B82*C82)+(B83*C83)+(B84*C84)+(B85*C85)+(B86*C86)+(B87*C87)+(B88*C88)+(B89*C89)+(B90*C90)+(B91*C91)+(B92*C92)+(B93*C93)+(B94*C94)+(B95*C95)+(B96*C96)+(B97*C97)+(B98*C98)+(B99*C99)+(B100*C100)+(B101*C101) -> 0 | C102: =SUM(C81:C101) -> 0
A105: Step 2 - Fill out the "Other Payment Considerations" section (starting on row 18) ONLY if instructed to do so on the Data Input tab
A106: The Termination Penalty line should only have an amount listed if a termination clause is deemed Reasonably Certain to be exercised
A107: based on decisions by the Agency (response from the Data Input tab is shown in col C) AND this termination will cause a Penalty to be due.
A109: Steps 3 - 8 are OPTIONAL (calculation of Present Value and Amortization Tables)
A110: Step 3 - Click the Macro button below to Generate the first 2 columns of the Present Value (PV) Table.
A113: Step 4 - Using the Payment Schedule filled out in Steps 1 & 2, fill in the Payment Amounts into col F of the PV Table.
A114: a - If there are 12 payments for the 1st payment amount, and 6 payments for the 2nd payment amount, list the 1st amount in the
A115: first 12 rows of the Table, then the 2nd amount for the next 6 rows, and do the same for the remaining payment amounts listed
A116: in the Payment Schedule until all the payments are filled in on the Table.
A117: b - Make sure not to miss any Skipped Payment periods. If the Payment Schedule indicates the 13th payment is $0, then row 13 of the
A118: Table should be $0, same as the Payment Schedule.
A119: c - If there are any amounts listed for "Other Payment Considerations", add it to the final payment. For example, if the final
A120: payment is $20,000, and there is a Termination Penalty listed for $50,000, then the final payment in the Table should be $70,000.
A121: d - Check to make sure that the sum of all the payments entered into col F of the Table is the same as the Total Undiscounted Cash
A122: Flows in cell B22.
A124: Step 5 - Click the Macro button below to Calculate Net Present Value and Generate the PV and Amortization Tables.
A128: Step 6 - Check data for accuracy:
A129: a - Check the date of the final payment in the Amortization Table and compare to Subscription End Date in cell B8. Make sure the final
A130: payment date is reasonable in comparison to the subscription End Date (within same month if payments are Monthly, within the final
A131: quarter if Quarterly, etc).
A132: b - If payments change (there are amounts in Payment Amount #2 + rows), then check the dates the amounts change in the
A133: Amort Table (col K & M) to make sure the payments change on the correct dates as per the SBITA Contract.
A134: c - If 6a and 6b are BOTH correct, skip to Step 8 (Do NOT click the Start Over Macro Button).
A135: d - If 6a or 6b does not appear to be correct:
A136: i - Double-check the Instructions above (Steps 1 - 6), including the check for # of payments in 1i & check for Table payments in 4d.
A137: ii - Double-check cells B2-B8 by reviewing the SBITA Contract. These cells automatically filled based on answers in the Data Input
A138: tab. Make any necessary corrections in the Data Input tab (NOT in cells B2-B8) - the corresponding question #s are referenced above.
A139: iii - Double-Check the Payment Schedule and Other Payment Considerations sections. Compare back to the SBITA contract to
A140: verify, and correct as necessary.
A141: e - Once corrections have been made, click the Macro button below to Delete the PV & Amortization Tables.
A145: Step 7 - Repeat Steps 3-6 as needed until all checks (1i, 4d, 6a, 6b, and 6di-6diii) are correct.
A147: Step 8 - See Net Present Value calculated in cell B25 for the SBITA Liability and the SBITA Asset Cost in cell B34.
A148: Also, see Present Value Table in columns E-G,
A149: and Amortization Table in columns J-P.
A150: Note: If Implementation Period is not yet complete, then only a Development in Process Asset will be recognized at this point (cell B34 will
A151: return a value of "Not yet determined" if implementation is still in process & will also be noted as "Development in Process" in cell C31).
A152: The SBITA Liability & SBITA Asset will not be recognized until the SBITA is Put Into Service/Go-Live Date. If this is the case, please continue
A153: to track all Implementation Costs. This info will be requested in the following year's Closing Package Activity Form.
A155: Please DO NOT add SBITA implementation costs into the AZ360 Fixed Assets System. This will be done manually as the SBITA Asset
A156: includes not only the implementation costs, but also the Present Value of the Subscription Fixed Payments (Liability).

Sheet SBITA 2 - PV Calc
A1: Present Value Calculations tab - SBITA # 2 (column D) | B1: Contract # | C1: ='Data Input'!D56 -> 0
A2: Periodic Interest Rate (Section VI, #28-29 from Data Input tab) | B2: ='Data Input'!D239 -> 0
A3: Cash Flows at Beginning or End (Section IV, #21) | B3: ='Data Input'!D165 -> 0 | C3: Important:
A4: Number of payments (Section IV, #20) | B4: ='Data Input'!D157 -> 0 | C4: Do not insert/delete/move
A5: Frequency of payments (Section IV, #19) | B5: ='Data Input'!D150 -> 0 | C5: cells B2:B8
A6: Date of first payment (Section IV, #22) | B6: ='Data Input'!D171 -> 00:00:00 | C6: (macros depend on them)
A7: Date Put Into Service/Go-Live Date (#14 from Data Input tab) | B7: ='Data Input'!D132 -> 00:00:00
A8: Subscription End Date including Extensions (Section IV, #17) | B8: ='Data Input'!D145 -> 00:00:00
A10: Fixed Subscription Payment Schedule (Section V, #23 & see instructions below): | B10: Amount | C10: # of Payments
A11: Payment Amount #1 & # of Payments at this amount | B11: 0 | C11: 0
A12: Payment Amount #2 & # of Payments at this amount | B12: 0 | C12: 0
A13: Payment Amount #3 & # of Payments at this amount | B13: 0 | C13: 0
A14: Payment Amount #4 & # of Payments at this amount | B14: 0 | C14: 0
A15: Totals from add'l table below (if needed) | B15: =B102 -> 0 | C15: =C102 -> 0
A16: Total Subscription Payments (sum of all payment amounts * # of payments) | B16: =(B11*C11)+(B12*C12)+(B13*C13)+(B14*C14)+(B15) -> 0 | C16: =SUM(C11:C15) -> 0
A18: Other Payment Considerations: | C18: Answer per Data Input Tab
A19: Termination Penalty (Section V, #26) | B19: 0 | C19: ='Data Input'!D208 -> 0
A21: Total Other Payment Considerations | B21: =SUM(B19:B20) -> 0
A22: Total Undiscounted Cash Flows (Total Payments + Other Considerations) | B22: =B16+B21 -> 0
C24: Important:
A25: Liability Net Present Value (calculated after Macros below run) | B25: =SUM(G:G) -> 0 | C25: Do not insert/delete/move
C26: NPV must be cell B25
C27: (macros depend on it)
A28: Asset Adjustments (from Asset Adj tab): | B28: Asset Adj Amount
A29: Total Asset Adjustments during Current Year | B29: ='Asset Adj'!D174 -> 0
A30: EXPECTED Future Asset Adjustments (if there is an amt here, s/b DIP) | B30: ='Asset Adj'!D175 -> 0 | C30: DIP or Final?
A31: Total Asset Adjustment | B31: =SUM(B29:B30) -> 0 | C31: ='Asset Adj'!D177 -> FINAL Adj Amount
A34: Software Subscription Asset Cost (calculated after Macros below run) | B34: =IF(C31="FINAL Adj Amount",B25+B31,"Not yet determined") -> 0
A36: The Agency is not required to calculate the Present Value and/or enable Macros,
A37: but Steps 1 & 2 of the instructions below are REQUIRED to be completed.
A38: After completing Steps 1 & 2, if desired to calculate the Present Value, complete Steps 3 - 8:
A40: Note 1: First make sure your Excel settings are correct - | B40: See How to Enable Macros tab
A41: Note 2: Please do not Insert, Delete, or Move any cells, columns or rows as this could cause the Macros to fail.
A42: Note 3: The Teal Cells in columns B & C are for manual input, and the Present Value Table will need to be adjusted in column F.
A43: The Orange cells in columns B & C will automatically fill. The Present Value and Amortization Tables will be generated with the
A44: Macro buttons. Please do not make changes to the orange cells or anywhere within the Tables (except column F).
A46: Step 1 - Fill out the "Fixed Subscription Payment Schedule" above (starting on row 10).
A47: a - To calculate the Fixed Subscription Payment:
A48: i - Start with the fixed subscription periodic payments stated in the contract.
A49: ii - In addition, add "Fixed In-Substance Fees" to the above amount. "Fixed In-Substance Fees" are the Minimum Usage Costs of a variable
A50: usage fee. For Example, if a subscription includes up to 5 gigs of data used for a set fee, but charges extra for every additional gig, the
A51: minimum fee for the first 5 gigs is the "Fixed In-Substance Fee", and the per gig fees above that minimum would be the variable fees.
A52: iii - For payments that depend on an index or a rate (such as the Consumer Price Index or a market interest rate), the payment should be
A53: initially measured using the index or rate published as of the start of the subscription term.
A54: iv - EXCLUDE any variable usage fees and/or support/maintenance service fees included in the payment (see #24 & 25 in Data Input tab)
A55: b - If payments escalate over time, list the beginning payment amount (col B) & # of payments to be paid at that amount (col C), then
A56: move to line #2 and list the next payment amount & # of payments at that amount, etc.
A57: c - If an extension is deemed Reasonably Certain to be exercised, but the amount is listed as "negotiable", then use the fixed
A58: payment amount just prior to the date of extension for those unknown amounts.
A59: d - If there is an Abated or Free Rent period (skipped payment) indicated in the SBITA contract, | C59: Desc of Lease Incentives
A60: indicate that with a $0 payment amount (col B) & the number of payments to be skipped (col C). | C60: ='Data Input'!D218 -> 0
A61: Make sure to put these skipped payments in the correct order chronologically. For example, if there
A62: is a skipped payment for payment 13, list the first 12 payments on the first line, then list line #2 as
A63: $0 (col B) and 1 (col C), then line #3 as the continuing payments after the skipped payment.
A64: e - If a Bonus payment from the SBITA Vendor is included in the contract, subtract that amount from the payment closest to the proper
A65: chronological period (as described in d above). This may cause that payment amount to be negative.
A66: f - If payments are Less Often than Annually,indicate this in the Payment Schedule above by listing the 1st payment on the 1st row & a 1 in
A67: col C, then the 2nd row should show how many years to be skipped in col C ($0 in col B), then the 3rd row will show the 2nd payment.
A68: Repeat until all payments & all years are represented in the Payment Schdl (total in col C should tie to total yrs of subscription term in
A69: cell B4).
A70: g - Use the Teal box below to add any extra details, how payments change over time (For example, (a) Payment increases 5% every 10 yrs;
A71: (b) Payment recalculated every 5 yrs based on CPI, etc.), or describe payment frequency if Less Often than Annually.
A75: h - If there are not enough lines in the Payment Schedule above, use the table below to input the additional payment amounts, and the
A76: totals from the additional table will automatically be added to the Payment Schedule above. Contact the GAAP Group if you need more
A77: than 25 lines.
A78: i - Verify that the total # of payments in cell B4 is the same as the sum of col C (cell C16).
A80: Additional Subscription Payment Lines (if needed) | B80: Amount | C80: # of Payments
A81: Payment Amount #5 & # of Payments at this amount | B81: 0 | C81: 0
A82: Payment Amount #6 & # of Payments at this amount | B82: 0 | C82: 0
A83: Payment Amount #7 & # of Payments at this amount | B83: 0 | C83: 0
A84: Payment Amount #8 & # of Payments at this amount | B84: 0 | C84: 0
A85: Payment Amount #9 & # of Payments at this amount | B85: 0 | C85: 0
A86: Payment Amount #10 & # of Payments at this amount | B86: 0 | C86: 0
A87: Payment Amount #11 & # of Payments at this amount | B87: 0 | C87: 0
A88: Payment Amount #12 & # of Payments at this amount | B88: 0 | C88: 0
A89: Payment Amount #13 & # of Payments at this amount | B89: 0 | C89: 0
A90: Payment Amount #14 & # of Payments at this amount | B90: 0 | C90: 0
A91: Payment Amount #15 & # of Payments at this amount | B91: 0 | C91: 0
A92: Payment Amount #16 & # of Payments at this amount | B92: 0 | C92: 0
A93: Payment Amount #17 & # of Payments at this amount | B93: 0 | C93: 0
A94: Payment Amount #18 & # of Payments at this amount | B94: 0 | C94: 0
A95: Payment Amount #19 & # of Payments at this amount | B95: 0 | C95: 0
A96: Payment Amount #20 & # of Payments at this amount | B96: 0 | C96: 0
A97: Payment Amount #21 & # of Payments at this amount | B97: 0 | C97: 0
A98: Payment Amount #22 & # of Payments at this amount | B98: 0 | C98: 0
A99: Payment Amount #23 & # of Payments at this amount | B99: 0 | C99: 0
A100: Payment Amount #24 & # of Payments at this amount | B100: 0 | C100: 0
A101: Payment Amount #25 & # of Payments at this amount | B101: 0 | C101: 0
A102: Total Add'l Subscription Payments (will automatically be added to the Schdl above) | B102: =(B81*C81)+(B82*C82)+(B83*C83)+(B84*C84)+(B85*C85)+(B86*C86)+(B87*C87)+(B88*C88)+(B89*C89)+(B90*C90)+(B91*C91)+(B92*C92)+(B93*C93)+(B94*C94)+(B95*C95)+(B96*C96)+(B97*C97)+(B98*C98)+(B99*C99)+(B100*C100)+(B101*C101) -> 0 | C102: =SUM(C81:C101) -> 0
A105: Step 2 - Fill out the "Other Payment Considerations" section (starting on row 18) ONLY if instructed to do so on the Data Input tab
A106: The Termination Penalty line should only have an amount listed if a termination clause is deemed Reasonably Certain to be exercised
A107: based on decisions by the Agency (response from the Data Input tab is shown in col C) AND this termination will cause a Penalty to be due.
A109: Steps 3 - 8 are OPTIONAL (calculation of Present Value and Amortization Tables)
A110: Step 3 - Click the Macro button below to Generate the first 2 columns of the Present Value (PV) Table.
A113: Step 4 - Using the Payment Schedule filled out in Steps 1 & 2, fill in the Payment Amounts into col F of the PV Table.
A114: a - If there are 12 payments for the 1st payment amount, and 6 payments for the 2nd payment amount, list the 1st amount in the
A115: first 12 rows of the Table, then the 2nd amount for the next 6 rows, and do the same for the remaining payment amounts listed
A116: in the Payment Schedule until all the payments are filled in on the Table.
A117: b - Make sure not to miss any Skipped Payment periods. If the Payment Schedule indicates the 13th payment is $0, then row 13 of the
A118: Table should be $0, same as the Payment Schedule.
A119: c - If there are any amounts listed for "Other Payment Considerations", add it to the final payment. For example, if the final
A120: payment is $20,000, and there is a Termination Penalty listed for $50,000, then the final payment in the Table should be $70,000.
A121: d - Check to make sure that the sum of all the payments entered into col F of the Table is the same as the Total Undiscounted Cash
A122: Flows in cell B22.
A124: Step 5 - Click the Macro button below to Calculate Net Present Value and Generate the PV and Amortization Tables.
A128: Step 6 - Check data for accuracy:
A129: a - Check the date of the final payment in the Amortization Table and compare to Subscription End Date in cell B8. Make sure the final
A130: payment date is reasonable in comparison to the subscription End Date (within same month if payments are Monthly, within the final
A131: quarter if Quarterly, etc).
A132: b - If payments change (there are amounts in Payment Amount #2 + rows), then check the dates the amounts change in the
A133: Amort Table (col K & M) to make sure the payments change on the correct dates as per the SBITA Contract.
A134: c - If 6a and 6b are BOTH correct, skip to Step 8 (Do NOT click the Start Over Macro Button).
A135: d - If 6a or 6b does not appear to be correct:
A136: i - Double-check the Instructions above (Steps 1 - 6), including the check for # of payments in 1i & check for Table payments in 4d.
A137: ii - Double-check cells B2-B8 by reviewing the SBITA Contract. These cells automatically filled based on answers in the Data Input
A138: tab. Make any necessary corrections in the Data Input tab (NOT in cells B2-B8) - the corresponding question #s are referenced above.
A139: iii - Double-Check the Payment Schedule and Other Payment Considerations sections. Compare back to the SBITA contract to
A140: verify, and correct as necessary.
A141: e - Once corrections have been made, click the Macro button below to Delete the PV & Amortization Tables.
A145: Step 7 - Repeat Steps 3-6 as needed until all checks (1i, 4d, 6a, 6b, and 6di-6diii) are correct.
A147: Step 8 - See Net Present Value calculated in cell B25 for the SBITA Liability and the SBITA Asset Cost in cell B34.
A148: Also, see Present Value Table in columns E-G,
A149: and Amortization Table in columns J-P.
A150: Note: If Implementation Period is not yet complete, then only a Development in Process Asset will be recognized at this point (cell B34 will
A151: return a value of "Not yet determined" if implementation is still in process & will also be noted as "Development in Process" in cell C31).
A152: The SBITA Liability & SBITA Asset will not be recognized until the SBITA is Put Into Service/Go-Live Date. If this is the case, please continue
A153: to track all Implementation Costs. This info will be requested in the following year's Closing Package Activity Form.
A155: Please DO NOT add SBITA implementation costs into the AZ360 Fixed Assets System. This will be done manually as the SBITA Asset
A156: includes not only the implementation costs, but also the Present Value of the Subscription Fixed Payments (Liability).

Sheet SBITA 3 - PV Calc
A1: Present Value Calculations tab - SBITA # 3 (column E) | B1: Contract # | C1: ='Data Input'!E56 -> 0
A2: Periodic Interest Rate (Section VI, #28-29 from Data Input tab) | B2: ='Data Input'!E239 -> 0
A3: Cash Flows at Beginning or End (Section IV, #21) | B3: ='Data Input'!E165 -> 0 | C3: Important:
A4: Number of payments (Section IV, #20) | B4: ='Data Input'!E157 -> 0 | C4: Do not insert/delete/move
A5: Frequency of payments (Section IV, #19) | B5: ='Data Input'!E150 -> 0 | C5: cells B2:B8
A6: Date of first payment (Section IV, #22) | B6: ='Data Input'!E171 -> 00:00:00 | C6: (macros depend on them)
A7: Date Put Into Service/Go-Live Date (#14 from Data Input tab) | B7: ='Data Input'!E132 -> 00:00:00
A8: Subscription End Date including Extensions (Section IV, #17) | B8: ='Data Input'!E145 -> 00:00:00
A10: Fixed Subscription Payment Schedule (Section V, #23 & see instructions below): | B10: Amount | C10: # of Payments
A11: Payment Amount #1 & # of Payments at this amount | B11: 0 | C11: 0
A12: Payment Amount #2 & # of Payments at this amount | B12: 0 | C12: 0
A13: Payment Amount #3 & # of Payments at this amount | B13: 0 | C13: 0
A14: Payment Amount #4 & # of Payments at this amount | B14: 0 | C14: 0
A15: Totals from add'l table below (if needed) | B15: =B102 -> 0 | C15: =C102 -> 0
A16: Total Subscription Payments (sum of all payment amounts * # of payments) | B16: =(B11*C11)+(B12*C12)+(B13*C13)+(B14*C14)+(B15) -> 0 | C16: =SUM(C11:C15) -> 0
A18: Other Payment Considerations: | C18: Answer per Data Input Tab
A19: Termination Penalty (Section V, #26) | B19: 0 | C19: ='Data Input'!E208 -> 0
A21: Total Other Payment Considerations | B21: =SUM(B19:B20) -> 0
A22: Total Undiscounted Cash Flows (Total Payments + Other Considerations) | B22: =B16+B21 -> 0
C24: Important:
A25: Liability Net Present Value (calculated after Macros below run) | B25: =SUM(G:G) -> 0 | C25: Do not insert/delete/move
C26: NPV must be cell B25
C27: (macros depend on it)
A28: Asset Adjustments (from Asset Adj tab): | B28: Asset Adj Amount
A29: Total Asset Adjustments during Current Year | B29: ='Asset Adj'!E174 -> 0
A30: EXPECTED Future Asset Adjustments (if there is an amt here, s/b DIP) | B30: ='Asset Adj'!E175 -> 0 | C30: DIP or Final?
A31: Total Asset Adjustment | B31: =SUM(B29:B30) -> 0 | C31: ='Asset Adj'!E177 -> FINAL Adj Amount
A34: Software Subscription Asset Cost (calculated after Macros below run) | B34: =IF(C31="FINAL Adj Amount",B25+B31,"Not yet determined") -> 0
A36: The Agency is not required to calculate the Present Value and/or enable Macros,
A37: but Steps 1 & 2 of the instructions below are REQUIRED to be completed.
A38: After completing Steps 1 & 2, if desired to calculate the Present Value, complete Steps 3 - 8:
A40: Note 1: First make sure your Excel settings are correct - | B40: See How to Enable Macros tab
A41: Note 2: Please do not Insert, Delete, or Move any cells, columns or rows as this could cause the Macros to fail.
A42: Note 3: The Teal Cells in columns B & C are for manual input, and the Present Value Table will need to be adjusted in column F.
A43: The Orange cells in columns B & C will automatically fill. The Present Value and Amortization Tables will be generated with the
A44: Macro buttons. Please do not make changes to the orange cells or anywhere within the Tables (except column F).
A46: Step 1 - Fill out the "Fixed Subscription Payment Schedule" above (starting on row 10).
A47: a - To calculate the Fixed Subscription Payment:
A48: i - Start with the fixed subscription periodic payments stated in the contract.
A49: ii - In addition, add "Fixed In-Substance Fees" to the above amount. "Fixed In-Substance Fees" are the Minimum Usage Costs of a variable
A50: usage fee. For Example, if a subscription includes up to 5 gigs of data used for a set fee, but charges extra for every additional gig, the
A51: minimum fee for the first 5 gigs is the "Fixed In-Substance Fee", and the per gig fees above that minimum would be the variable fees.
A52: iii - For payments that depend on an index or a rate (such as the Consumer Price Index or a market interest rate), the payment should be
A53: initially measured using the index or rate published as of the start of the subscription term.
A54: iv - EXCLUDE any variable usage fees and/or support/maintenance service fees included in the payment (see #24 & 25 in Data Input tab)
A55: b - If payments escalate over time, list the beginning payment amount (col B) & # of payments to be paid at that amount (col C), then
A56: move to line #2 and list the next payment amount & # of payments at that amount, etc.
A57: c - If an extension is deemed Reasonably Certain to be exercised, but the amount is listed as "negotiable", then use the fixed
A58: payment amount just prior to the date of extension for those unknown amounts.
A59: d - If there is an Abated or Free Rent period (skipped payment) indicated in the SBITA contract, | C59: Desc of Lease Incentives
A60: indicate that with a $0 payment amount (col B) & the number of payments to be skipped (col C). | C60: ='Data Input'!E218 -> 0
A61: Make sure to put these skipped payments in the correct order chronologically. For example, if there
A62: is a skipped payment for payment 13, list the first 12 payments on the first line, then list line #2 as
A63: $0 (col B) and 1 (col C), then line #3 as the continuing payments after the skipped payment.
A64: e - If a Bonus payment from the SBITA Vendor is included in the contract, subtract that amount from the payment closest to the proper
A65: chronological period (as described in d above). This may cause that payment amount to be negative.
A66: f - If payments are Less Often than Annually,indicate this in the Payment Schedule above by listing the 1st payment on the 1st row & a 1 in
A67: col C, then the 2nd row should show how many years to be skipped in col C ($0 in col B), then the 3rd row will show the 2nd payment.
A68: Repeat until all payments & all years are represented in the Payment Schdl (total in col C should tie to total yrs of subscription term in
A69: cell B4).
A70: g - Use the Teal box below to add any extra details, how payments change over time (For example, (a) Payment increases 5% every 10 yrs;
A71: (b) Payment recalculated every 5 yrs based on CPI, etc.), or describe payment frequency if Less Often than Annually.
A75: h - If there are not enough lines in the Payment Schedule above, use the table below to input the additional payment amounts, and the
A76: totals from the additional table will automatically be added to the Payment Schedule above. Contact the GAAP Group if you need more
A77: than 25 lines.
A78: i - Verify that the total # of payments in cell B4 is the same as the sum of col C (cell C16).
A80: Additional Subscription Payment Lines (if needed) | B80: Amount | C80: # of Payments
A81: Payment Amount #5 & # of Payments at this amount | B81: 0 | C81: 0
A82: Payment Amount #6 & # of Payments at this amount | B82: 0 | C82: 0
A83: Payment Amount #7 & # of Payments at this amount | B83: 0 | C83: 0
A84: Payment Amount #8 & # of Payments at this amount | B84: 0 | C84: 0
A85: Payment Amount #9 & # of Payments at this amount | B85: 0 | C85: 0
A86: Payment Amount #10 & # of Payments at this amount | B86: 0 | C86: 0
A87: Payment Amount #11 & # of Payments at this amount | B87: 0 | C87: 0
A88: Payment Amount #12 & # of Payments at this amount | B88: 0 | C88: 0
A89: Payment Amount #13 & # of Payments at this amount | B89: 0 | C89: 0
A90: Payment Amount #14 & # of Payments at this amount | B90: 0 | C90: 0
A91: Payment Amount #15 & # of Payments at this amount | B91: 0 | C91: 0
A92: Payment Amount #16 & # of Payments at this amount | B92: 0 | C92: 0
A93: Payment Amount #17 & # of Payments at this amount | B93: 0 | C93: 0
A94: Payment Amount #18 & # of Payments at this amount | B94: 0 | C94: 0
A95: Payment Amount #19 & # of Payments at this amount | B95: 0 | C95: 0
A96: Payment Amount #20 & # of Payments at this amount | B96: 0 | C96: 0
A97: Payment Amount #21 & # of Payments at this amount | B97: 0 | C97: 0
A98: Payment Amount #22 & # of Payments at this amount | B98: 0 | C98: 0
A99: Payment Amount #23 & # of Payments at this amount | B99: 0 | C99: 0
A100: Payment Amount #24 & # of Payments at this amount | B100: 0 | C100: 0
A101: Payment Amount #25 & # of Payments at this amount | B101: 0 | C101: 0
A102: Total Add'l Subscription Payments (will automatically be added to the Schdl above) | B102: =(B81*C81)+(B82*C82)+(B83*C83)+(B84*C84)+(B85*C85)+(B86*C86)+(B87*C87)+(B88*C88)+(B89*C89)+(B90*C90)+(B91*C91)+(B92*C92)+(B93*C93)+(B94*C94)+(B95*C95)+(B96*C96)+(B97*C97)+(B98*C98)+(B99*C99)+(B100*C100)+(B101*C101) -> 0 | C102: =SUM(C81:C101) -> 0
A105: Step 2 - Fill out the "Other Payment Considerations" section (starting on row 18) ONLY if instructed to do so on the Data Input tab
A106: The Termination Penalty line should only have an amount listed if a termination clause is deemed Reasonably Certain to be exercised
A107: based on decisions by the Agency (response from the Data Input tab is shown in col C) AND this termination will cause a Penalty to be due.
A109: Steps 3 - 8 are OPTIONAL (calculation of Present Value and Amortization Tables)
A110: Step 3 - Click the Macro button below to Generate the first 2 columns of the Present Value (PV) Table.
A113: Step 4 - Using the Payment Schedule filled out in Steps 1 & 2, fill in the Payment Amounts into col F of the PV Table.
A114: a - If there are 12 payments for the 1st payment amount, and 6 payments for the 2nd payment amount, list the 1st amount in the
A115: first 12 rows of the Table, then the 2nd amount for the next 6 rows, and do the same for the remaining payment amounts listed
A116: in the Payment Schedule until all the payments are filled in on the Table.
A117: b - Make sure not to miss any Skipped Payment periods. If the Payment Schedule indicates the 13th payment is $0, then row 13 of the
A118: Table should be $0, same as the Payment Schedule.
A119: c - If there are any amounts listed for "Other Payment Considerations", add it to the final payment. For example, if the final
A120: payment is $20,000, and there is a Termination Penalty listed for $50,000, then the final payment in the Table should be $70,000.
A121: d - Check to make sure that the sum of all the payments entered into col F of the Table is the same as the Total Undiscounted Cash
A122: Flows in cell B22.
A124: Step 5 - Click the Macro button below to Calculate Net Present Value and Generate the PV and Amortization Tables.
A128: Step 6 - Check data for accuracy:
A129: a - Check the date of the final payment in the Amortization Table and compare to Subscription End Date in cell B8. Make sure the final
A130: payment date is reasonable in comparison to the subscription End Date (within same month if payments are Monthly, within the final
A131: quarter if Quarterly, etc).
A132: b - If payments change (there are amounts in Payment Amount #2 + rows), then check the dates the amounts change in the
A133: Amort Table (col K & M) to make sure the payments change on the correct dates as per the SBITA Contract.
A134: c - If 6a and 6b are BOTH correct, skip to Step 8 (Do NOT click the Start Over Macro Button).
A135: d - If 6a or 6b does not appear to be correct:
A136: i - Double-check the Instructions above (Steps 1 - 6), including the check for # of payments in 1i & check for Table payments in 4d.
A137: ii - Double-check cells B2-B8 by reviewing the SBITA Contract. These cells automatically filled based on answers in the Data Input
A138: tab. Make any necessary corrections in the Data Input tab (NOT in cells B2-B8) - the corresponding question #s are referenced above.
A139: iii - Double-Check the Payment Schedule and Other Payment Considerations sections. Compare back to the SBITA contract to
A140: verify, and correct as necessary.
A141: e - Once corrections have been made, click the Macro button below to Delete the PV & Amortization Tables.
A145: Step 7 - Repeat Steps 3-6 as needed until all checks (1i, 4d, 6a, 6b, and 6di-6diii) are correct.
A147: Step 8 - See Net Present Value calculated in cell B25 for the SBITA Liability and the SBITA Asset Cost in cell B34.
A148: Also, see Present Value Table in columns E-G,
A149: and Amortization Table in columns J-P.
A150: Note: If Implementation Period is not yet complete, then only a Development in Process Asset will be recognized at this point (cell B34 will
A151: return a value of "Not yet determined" if implementation is still in process & will also be noted as "Development in Process" in cell C31).
A152: The SBITA Liability & SBITA Asset will not be recognized until the SBITA is Put Into Service/Go-Live Date. If this is the case, please continue
A153: to track all Implementation Costs. This info will be requested in the following year's Closing Package Activity Form.
A155: Please DO NOT add SBITA implementation costs into the AZ360 Fixed Assets System. This will be done manually as the SBITA Asset
A156: includes not only the implementation costs, but also the Present Value of the Subscription Fixed Payments (Liability).

Sheet SBITA 4 - PV Calc
A1: Present Value Calculations tab - SBITA # 4 (column F) | B1: Contract # | C1: ='Data Input'!F56 -> 0
A2: Periodic Interest Rate (Section VI, #28-29 from Data Input tab) | B2: ='Data Input'!F239 -> 0
A3: Cash Flows at Beginning or End (Section IV, #21) | B3: ='Data Input'!F165 -> 0 | C3: Important:
A4: Number of payments (Section IV, #20) | B4: ='Data Input'!F157 -> 0 | C4: Do not insert/delete/move
A5: Frequency of payments (Section IV, #19) | B5: ='Data Input'!F150 -> 0 | C5: cells B2:B8
A6: Date of first payment (Section IV, #22) | B6: ='Data Input'!F171 -> 00:00:00 | C6: (macros depend on them)
A7: Date Put Into Service/Go-Live Date (#14 from Data Input tab) | B7: ='Data Input'!F132 -> 00:00:00
A8: Subscription End Date including Extensions (Section IV, #17) | B8: ='Data Input'!F145 -> 00:00:00
A10: Fixed Subscription Payment Schedule (Section V, #23 & see instructions below): | B10: Amount | C10: # of Payments
A11: Payment Amount #1 & # of Payments at this amount | B11: 0 | C11: 0
A12: Payment Amount #2 & # of Payments at this amount | B12: 0 | C12: 0
A13: Payment Amount #3 & # of Payments at this amount | B13: 0 | C13: 0
A14: Payment Amount #4 & # of Payments at this amount | B14: 0 | C14: 0
A15: Totals from add'l table below (if needed) | B15: =B102 -> 0 | C15: =C102 -> 0
A16: Total Subscription Payments (sum of all payment amounts * # of payments) | B16: =(B11*C11)+(B12*C12)+(B13*C13)+(B14*C14)+(B15) -> 0 | C16: =SUM(C11:C15) -> 0
A18: Other Payment Considerations: | C18: Answer per Data Input Tab
A19: Termination Penalty (Section V, #26) | B19: 0 | C19: ='Data Input'!F208 -> 0
A21: Total Other Payment Considerations | B21: =SUM(B19:B20) -> 0
A22: Total Undiscounted Cash Flows (Total Payments + Other Considerations) | B22: =B16+B21 -> 0
C24: Important:
A25: Liability Net Present Value (calculated after Macros below run) | B25: =SUM(G:G) -> 0 | C25: Do not insert/delete/move
C26: NPV must be cell B25
C27: (macros depend on it)
A28: Asset Adjustments (from Asset Adj tab): | B28: Asset Adj Amount
A29: Total Asset Adjustments during Current Year | B29: ='Asset Adj'!F174 -> 0
A30: EXPECTED Future Asset Adjustments (if there is an amt here, s/b DIP) | B30: ='Asset Adj'!F175 -> 0 | C30: DIP or Final?
A31: Total Asset Adjustment | B31: =SUM(B29:B30) -> 0 | C31: ='Asset Adj'!F177 -> FINAL Adj Amount
A34: Software Subscription Asset Cost (calculated after Macros below run) | B34: =IF(C31="FINAL Adj Amount",B25+B31,"Not yet determined") -> 0
A36: The Agency is not required to calculate the Present Value and/or enable Macros,
A37: but Steps 1 & 2 of the instructions below are REQUIRED to be completed.
A38: After completing Steps 1 & 2, if desired to calculate the Present Value, complete Steps 3 - 8:
A40: Note 1: First make sure your Excel settings are correct - | B40: See How to Enable Macros tab
A41: Note 2: Please do not Insert, Delete, or Move any cells, columns or rows as this could cause the Macros to fail.
A42: Note 3: The Teal Cells in columns B & C are for manual input, and the Present Value Table will need to be adjusted in column F.
A43: The Orange cells in columns B & C will automatically fill. The Present Value and Amortization Tables will be generated with the
A44: Macro buttons. Please do not make changes to the orange cells or anywhere within the Tables (except column F).
A46: Step 1 - Fill out the "Fixed Subscription Payment Schedule" above (starting on row 10).
A47: a - To calculate the Fixed Subscription Payment:
A48: i - Start with the fixed subscription periodic payments stated in the contract.
A49: ii - In addition, add "Fixed In-Substance Fees" to the above amount. "Fixed In-Substance Fees" are the Minimum Usage Costs of a variable
A50: usage fee. For Example, if a subscription includes up to 5 gigs of data used for a set fee, but charges extra for every additional gig, the
A51: minimum fee for the first 5 gigs is the "Fixed In-Substance Fee", and the per gig fees above that minimum would be the variable fees.
A52: iii - For payments that depend on an index or a rate (such as the Consumer Price Index or a market interest rate), the payment should be
A53: initially measured using the index or rate published as of the start of the subscription term.
A54: iv - EXCLUDE any variable usage fees and/or support/maintenance service fees included in the payment (see #24 & 25 in Data Input tab)
A55: b - If payments escalate over time, list the beginning payment amount (col B) & # of payments to be paid at that amount (col C), then
A56: move to line #2 and list the next payment amount & # of payments at that amount, etc.
A57: c - If an extension is deemed Reasonably Certain to be exercised, but the amount is listed as "negotiable", then use the fixed
A58: payment amount just prior to the date of extension for those unknown amounts.
A59: d - If there is an Abated or Free Rent period (skipped payment) indicated in the SBITA contract, | C59: Desc of Lease Incentives
A60: indicate that with a $0 payment amount (col B) & the number of payments to be skipped (col C). | C60: ='Data Input'!F218 -> 0
A61: Make sure to put these skipped payments in the correct order chronologically. For example, if there
A62: is a skipped payment for payment 13, list the first 12 payments on the first line, then list line #2 as
A63: $0 (col B) and 1 (col C), then line #3 as the continuing payments after the skipped payment.
A64: e - If a Bonus payment from the SBITA Vendor is included in the contract, subtract that amount from the payment closest to the proper
A65: chronological period (as described in d above). This may cause that payment amount to be negative.
A66: f - If payments are Less Often than Annually,indicate this in the Payment Schedule above by listing the 1st payment on the 1st row & a 1 in
A67: col C, then the 2nd row should show how many years to be skipped in col C ($0 in col B), then the 3rd row will show the 2nd payment.
A68: Repeat until all payments & all years are represented in the Payment Schdl (total in col C should tie to total yrs of subscription term in
A69: cell B4).
A70: g - Use the Teal box below to add any extra details, how payments change over time (For example, (a) Payment increases 5% every 10 yrs;
A71: (b) Payment recalculated every 5 yrs based on CPI, etc.), or describe payment frequency if Less Often than Annually.
A75: h - If there are not enough lines in the Payment Schedule above, use the table below to input the additional payment amounts, and the
A76: totals from the additional table will automatically be added to the Payment Schedule above. Contact the GAAP Group if you need more
A77: than 25 lines.
A78: i - Verify that the total # of payments in cell B4 is the same as the sum of col C (cell C16).
A80: Additional Subscription Payment Lines (if needed) | B80: Amount | C80: # of Payments
A81: Payment Amount #5 & # of Payments at this amount | B81: 0 | C81: 0
A82: Payment Amount #6 & # of Payments at this amount | B82: 0 | C82: 0
A83: Payment Amount #7 & # of Payments at this amount | B83: 0 | C83: 0
A84: Payment Amount #8 & # of Payments at this amount | B84: 0 | C84: 0
A85: Payment Amount #9 & # of Payments at this amount | B85: 0 | C85: 0
A86: Payment Amount #10 & # of Payments at this amount | B86: 0 | C86: 0
A87: Payment Amount #11 & # of Payments at this amount | B87: 0 | C87: 0
A88: Payment Amount #12 & # of Payments at this amount | B88: 0 | C88: 0
A89: Payment Amount #13 & # of Payments at this amount | B89: 0 | C89: 0
A90: Payment Amount #14 & # of Payments at this amount | B90: 0 | C90: 0
A91: Payment Amount #15 & # of Payments at this amount | B91: 0 | C91: 0
A92: Payment Amount #16 & # of Payments at this amount | B92: 0 | C92: 0
A93: Payment Amount #17 & # of Payments at this amount | B93: 0 | C93: 0
A94: Payment Amount #18 & # of Payments at this amount | B94: 0 | C94: 0
A95: Payment Amount #19 & # of Payments at this amount | B95: 0 | C95: 0
A96: Payment Amount #20 & # of Payments at this amount | B96: 0 | C96: 0
A97: Payment Amount #21 & # of Payments at this amount | B97: 0 | C97: 0
A98: Payment Amount #22 & # of Payments at this amount | B98: 0 | C98: 0
A99: Payment Amount #23 & # of Payments at this amount | B99: 0 | C99: 0
A100: Payment Amount #24 & # of Payments at this amount | B100: 0 | C100: 0
A101: Payment Amount #25 & # of Payments at this amount | B101: 0 | C101: 0
A102: Total Add'l Subscription Payments (will automatically be added to the Schdl above) | B102: =(B81*C81)+(B82*C82)+(B83*C83)+(B84*C84)+(B85*C85)+(B86*C86)+(B87*C87)+(B88*C88)+(B89*C89)+(B90*C90)+(B91*C91)+(B92*C92)+(B93*C93)+(B94*C94)+(B95*C95)+(B96*C96)+(B97*C97)+(B98*C98)+(B99*C99)+(B100*C100)+(B101*C101) -> 0 | C102: =SUM(C81:C101) -> 0
A105: Step 2 - Fill out the "Other Payment Considerations" section (starting on row 18) ONLY if instructed to do so on the Data Input tab
A106: The Termination Penalty line should only have an amount listed if a termination clause is deemed Reasonably Certain to be exercised
A107: based on decisions by the Agency (response from the Data Input tab is shown in col C) AND this termination will cause a Penalty to be due.
A109: Steps 3 - 8 are OPTIONAL (calculation of Present Value and Amortization Tables)
A110: Step 3 - Click the Macro button below to Generate the first 2 columns of the Present Value (PV) Table.
A113: Step 4 - Using the Payment Schedule filled out in Steps 1 & 2, fill in the Payment Amounts into col F of the PV Table.
A114: a - If there are 12 payments for the 1st payment amount, and 6 payments for the 2nd payment amount, list the 1st amount in the
A115: first 12 rows of the Table, then the 2nd amount for the next 6 rows, and do the same for the remaining payment amounts listed
A116: in the Payment Schedule until all the payments are filled in on the Table.
A117: b - Make sure not to miss any Skipped Payment periods. If the Payment Schedule indicates the 13th payment is $0, then row 13 of the
A118: Table should be $0, same as the Payment Schedule.
A119: c - If there are any amounts listed for "Other Payment Considerations", add it to the final payment. For example, if the final
A120: payment is $20,000, and there is a Termination Penalty listed for $50,000, then the final payment in the Table should be $70,000.
A121: d - Check to make sure that the sum of all the payments entered into col F of the Table is the same as the Total Undiscounted Cash
A122: Flows in cell B22.
A124: Step 5 - Click the Macro button below to Calculate Net Present Value and Generate the PV and Amortization Tables.
A128: Step 6 - Check data for accuracy:
A129: a - Check the date of the final payment in the Amortization Table and compare to Subscription End Date in cell B8. Make sure the final
A130: payment date is reasonable in comparison to the subscription End Date (within same month if payments are Monthly, within the final
A131: quarter if Quarterly, etc).
A132: b - If payments change (there are amounts in Payment Amount #2 + rows), then check the dates the amounts change in the
A133: Amort Table (col K & M) to make sure the payments change on the correct dates as per the SBITA Contract.
A134: c - If 6a and 6b are BOTH correct, skip to Step 8 (Do NOT click the Start Over Macro Button).
A135: d - If 6a or 6b does not appear to be correct:
A136: i - Double-check the Instructions above (Steps 1 - 6), including the check for # of payments in 1i & check for Table payments in 4d.
A137: ii - Double-check cells B2-B8 by reviewing the SBITA Contract. These cells automatically filled based on answers in the Data Input
A138: tab. Make any necessary corrections in the Data Input tab (NOT in cells B2-B8) - the corresponding question #s are referenced above.
A139: iii - Double-Check the Payment Schedule and Other Payment Considerations sections. Compare back to the SBITA contract to
A140: verify, and correct as necessary.
A141: e - Once corrections have been made, click the Macro button below to Delete the PV & Amortization Tables.
A145: Step 7 - Repeat Steps 3-6 as needed until all checks (1i, 4d, 6a, 6b, and 6di-6diii) are correct.
A147: Step 8 - See Net Present Value calculated in cell B25 for the SBITA Liability and the SBITA Asset Cost in cell B34.
A148: Also, see Present Value Table in columns E-G,
A149: and Amortization Table in columns J-P.
A150: Note: If Implementation Period is not yet complete, then only a Development in Process Asset will be recognized at this point (cell B34 will
A151: return a value of "Not yet determined" if implementation is still in process & will also be noted as "Development in Process" in cell C31).
A152: The SBITA Liability & SBITA Asset will not be recognized until the SBITA is Put Into Service/Go-Live Date. If this is the case, please continue
A153: to track all Implementation Costs. This info will be requested in the following year's Closing Package Activity Form.
A155: Please DO NOT add SBITA implementation costs into the AZ360 Fixed Assets System. This will be done manually as the SBITA Asset
A156: includes not only the implementation costs, but also the Present Value of the Subscription Fixed Payments (Liability).

Sheet SBITA 5 - PV Calc
A1: Present Value Calculations tab - SBITA # 5 (column G) | B1: Contract # | C1: ='Data Input'!G56 -> 0
A2: Periodic Interest Rate (Section VI, #28-29 from Data Input tab) | B2: ='Data Input'!G239 -> 0
A3: Cash Flows at Beginning or End (Section IV, #21) | B3: ='Data Input'!G165 -> 0 | C3: Important:
A4: Number of payments (Section IV, #20) | B4: ='Data Input'!G157 -> 0 | C4: Do not insert/delete/move
A5: Frequency of payments (Section IV, #19) | B5: ='Data Input'!G150 -> 0 | C5: cells B2:B8
A6: Date of first payment (Section IV, #22) | B6: ='Data Input'!G171 -> 00:00:00 | C6: (macros depend on them)
A7: Date Put Into Service/Go-Live Date (#14 from Data Input tab) | B7: ='Data Input'!G132 -> 00:00:00
A8: Subscription End Date including Extensions (Section IV, #17) | B8: ='Data Input'!G145 -> 00:00:00
A10: Fixed Subscription Payment Schedule (Section V, #23 & see instructions below): | B10: Amount | C10: # of Payments
A11: Payment Amount #1 & # of Payments at this amount | B11: 0 | C11: 0
A12: Payment Amount #2 & # of Payments at this amount | B12: 0 | C12: 0
A13: Payment Amount #3 & # of Payments at this amount | B13: 0 | C13: 0
A14: Payment Amount #4 & # of Payments at this amount | B14: 0 | C14: 0
A15: Totals from add'l table below (if needed) | B15: =B102 -> 0 | C15: =C102 -> 0
A16: Total Subscription Payments (sum of all payment amounts * # of payments) | B16: =(B11*C11)+(B12*C12)+(B13*C13)+(B14*C14)+(B15) -> 0 | C16: =SUM(C11:C15) -> 0
A18: Other Payment Considerations: | C18: Answer per Data Input Tab
A19: Termination Penalty (Section V, #26) | B19: 0 | C19: ='Data Input'!G208 -> 0
A21: Total Other Payment Considerations | B21: =SUM(B19:B20) -> 0
A22: Total Undiscounted Cash Flows (Total Payments + Other Considerations) | B22: =B16+B21 -> 0
C24: Important:
A25: Liability Net Present Value (calculated after Macros below run) | B25: =SUM(G:G) -> 0 | C25: Do not insert/delete/move
C26: NPV must be cell B25
C27: (macros depend on it)
A28: Asset Adjustments (from Asset Adj tab): | B28: Asset Adj Amount
A29: Total Asset Adjustments during Current Year | B29: ='Asset Adj'!G174 -> 0
A30: EXPECTED Future Asset Adjustments (if there is an amt here, s/b DIP) | B30: ='Asset Adj'!G175 -> 0 | C30: DIP or Final?
A31: Total Asset Adjustment | B31: =SUM(B29:B30) -> 0 | C31: ='Asset Adj'!G177 -> FINAL Adj Amount
A34: Software Subscription Asset Cost (calculated after Macros below run) | B34: =IF(C31="FINAL Adj Amount",B25+B31,"Not yet determined") -> 0
A36: The Agency is not required to calculate the Present Value and/or enable Macros,
A37: but Steps 1 & 2 of the instructions below are REQUIRED to be completed.
A38: After completing Steps 1 & 2, if desired to calculate the Present Value, complete Steps 3 - 8:
A40: Note 1: First make sure your Excel settings are correct - | B40: See How to Enable Macros tab
A41: Note 2: Please do not Insert, Delete, or Move any cells, columns or rows as this could cause the Macros to fail.
A42: Note 3: The Teal Cells in columns B & C are for manual input, and the Present Value Table will need to be adjusted in column F.
A43: The Orange cells in columns B & C will automatically fill. The Present Value and Amortization Tables will be generated with the
A44: Macro buttons. Please do not make changes to the orange cells or anywhere within the Tables (except column F).
A46: Step 1 - Fill out the "Fixed Subscription Payment Schedule" above (starting on row 10).
A47: a - To calculate the Fixed Subscription Payment:
A48: i - Start with the fixed subscription periodic payments stated in the contract.
A49: ii - In addition, add "Fixed In-Substance Fees" to the above amount. "Fixed In-Substance Fees" are the Minimum Usage Costs of a variable
A50: usage fee. For Example, if a subscription includes up to 5 gigs of data used for a set fee, but charges extra for every additional gig, the
A51: minimum fee for the first 5 gigs is the "Fixed In-Substance Fee", and the per gig fees above that minimum would be the variable fees.
A52: iii - For payments that depend on an index or a rate (such as the Consumer Price Index or a market interest rate), the payment should be
A53: initially measured using the index or rate published as of the start of the subscription term.
A54: iv - EXCLUDE any variable usage fees and/or support/maintenance service fees included in the payment (see #24 & 25 in Data Input tab)
A55: b - If payments escalate over time, list the beginning payment amount (col B) & # of payments to be paid at that amount (col C), then
A56: move to line #2 and list the next payment amount & # of payments at that amount, etc.
A57: c - If an extension is deemed Reasonably Certain to be exercised, but the amount is listed as "negotiable", then use the fixed
A58: payment amount just prior to the date of extension for those unknown amounts.
A59: d - If there is an Abated or Free Rent period (skipped payment) indicated in the SBITA contract, | C59: Desc of Lease Incentives
A60: indicate that with a $0 payment amount (col B) & the number of payments to be skipped (col C). | C60: ='Data Input'!G218 -> 0
A61: Make sure to put these skipped payments in the correct order chronologically. For example, if there
A62: is a skipped payment for payment 13, list the first 12 payments on the first line, then list line #2 as
A63: $0 (col B) and 1 (col C), then line #3 as the continuing payments after the skipped payment.
A64: e - If a Bonus payment from the SBITA Vendor is included in the contract, subtract that amount from the payment closest to the proper
A65: chronological period (as described in d above). This may cause that payment amount to be negative.
A66: f - If payments are Less Often than Annually,indicate this in the Payment Schedule above by listing the 1st payment on the 1st row & a 1 in
A67: col C, then the 2nd row should show how many years to be skipped in col C ($0 in col B), then the 3rd row will show the 2nd payment.
A68: Repeat until all payments & all years are represented in the Payment Schdl (total in col C should tie to total yrs of subscription term in
A69: cell B4).
A70: g - Use the Teal box below to add any extra details, how payments change over time (For example, (a) Payment increases 5% every 10 yrs;
A71: (b) Payment recalculated every 5 yrs based on CPI, etc.), or describe payment frequency if Less Often than Annually.
A75: h - If there are not enough lines in the Payment Schedule above, use the table below to input the additional payment amounts, and the
A76: totals from the additional table will automatically be added to the Payment Schedule above. Contact the GAAP Group if you need more
A77: than 25 lines.
A78: i - Verify that the total # of payments in cell B4 is the same as the sum of col C (cell C16).
A80: Additional Subscription Payment Lines (if needed) | B80: Amount | C80: # of Payments
A81: Payment Amount #5 & # of Payments at this amount | B81: 0 | C81: 0
A82: Payment Amount #6 & # of Payments at this amount | B82: 0 | C82: 0
A83: Payment Amount #7 & # of Payments at this amount | B83: 0 | C83: 0
A84: Payment Amount #8 & # of Payments at this amount | B84: 0 | C84: 0
A85: Payment Amount #9 & # of Payments at this amount | B85: 0 | C85: 0
A86: Payment Amount #10 & # of Payments at this amount | B86: 0 | C86: 0
A87: Payment Amount #11 & # of Payments at this amount | B87: 0 | C87: 0
A88: Payment Amount #12 & # of Payments at this amount | B88: 0 | C88: 0
A89: Payment Amount #13 & # of Payments at this amount | B89: 0 | C89: 0
A90: Payment Amount #14 & # of Payments at this amount | B90: 0 | C90: 0
A91: Payment Amount #15 & # of Payments at this amount | B91: 0 | C91: 0
A92: Payment Amount #16 & # of Payments at this amount | B92: 0 | C92: 0
A93: Payment Amount #17 & # of Payments at this amount | B93: 0 | C93: 0
A94: Payment Amount #18 & # of Payments at this amount | B94: 0 | C94: 0
A95: Payment Amount #19 & # of Payments at this amount | B95: 0 | C95: 0
A96: Payment Amount #20 & # of Payments at this amount | B96: 0 | C96: 0
A97: Payment Amount #21 & # of Payments at this amount | B97: 0 | C97: 0
A98: Payment Amount #22 & # of Payments at this amount | B98: 0 | C98: 0
A99: Payment Amount #23 & # of Payments at this amount | B99: 0 | C99: 0
A100: Payment Amount #24 & # of Payments at this amount | B100: 0 | C100: 0
A101: Payment Amount #25 & # of Payments at this amount | B101: 0 | C101: 0
A102: Total Add'l Subscription Payments (will automatically be added to the Schdl above) | B102: =(B81*C81)+(B82*C82)+(B83*C83)+(B84*C84)+(B85*C85)+(B86*C86)+(B87*C87)+(B88*C88)+(B89*C89)+(B90*C90)+(B91*C91)+(B92*C92)+(B93*C93)+(B94*C94)+(B95*C95)+(B96*C96)+(B97*C97)+(B98*C98)+(B99*C99)+(B100*C100)+(B101*C101) -> 0 | C102: =SUM(C81:C101) -> 0
A105: Step 2 - Fill out the "Other Payment Considerations" section (starting on row 18) ONLY if instructed to do so on the Data Input tab
A106: The Termination Penalty line should only have an amount listed if a termination clause is deemed Reasonably Certain to be exercised
A107: based on decisions by the Agency (response from the Data Input tab is shown in col C) AND this termination will cause a Penalty to be due.
A109: Steps 3 - 8 are OPTIONAL (calculation of Present Value and Amortization Tables)
A110: Step 3 - Click the Macro button below to Generate the first 2 columns of the Present Value (PV) Table.
A113: Step 4 - Using the Payment Schedule filled out in Steps 1 & 2, fill in the Payment Amounts into col F of the PV Table.
A114: a - If there are 12 payments for the 1st payment amount, and 6 payments for the 2nd payment amount, list the 1st amount in the
A115: first 12 rows of the Table, then the 2nd amount for the next 6 rows, and do the same for the remaining payment amounts listed
A116: in the Payment Schedule until all the payments are filled in on the Table.
A117: b - Make sure not to miss any Skipped Payment periods. If the Payment Schedule indicates the 13th payment is $0, then row 13 of the
A118: Table should be $0, same as the Payment Schedule.
A119: c - If there are any amounts listed for "Other Payment Considerations", add it to the final payment. For example, if the final
A120: payment is $20,000, and there is a Termination Penalty listed for $50,000, then the final payment in the Table should be $70,000.
A121: d - Check to make sure that the sum of all the payments entered into col F of the Table is the same as the Total Undiscounted Cash
A122: Flows in cell B22.
A124: Step 5 - Click the Macro button below to Calculate Net Present Value and Generate the PV and Amortization Tables.
A128: Step 6 - Check data for accuracy:
A129: a - Check the date of the final payment in the Amortization Table and compare to Subscription End Date in cell B8. Make sure the final
A130: payment date is reasonable in comparison to the subscription End Date (within same month if payments are Monthly, within the final
A131: quarter if Quarterly, etc).
A132: b - If payments change (there are amounts in Payment Amount #2 + rows), then check the dates the amounts change in the
A133: Amort Table (col K & M) to make sure the payments change on the correct dates as per the SBITA Contract.
A134: c - If 6a and 6b are BOTH correct, skip to Step 8 (Do NOT click the Start Over Macro Button).
A135: d - If 6a or 6b does not appear to be correct:
A136: i - Double-check the Instructions above (Steps 1 - 6), including the check for # of payments in 1i & check for Table payments in 4d.
A137: ii - Double-check cells B2-B8 by reviewing the SBITA Contract. These cells automatically filled based on answers in the Data Input
A138: tab. Make any necessary corrections in the Data Input tab (NOT in cells B2-B8) - the corresponding question #s are referenced above.
A139: iii - Double-Check the Payment Schedule and Other Payment Considerations sections. Compare back to the SBITA contract to
A140: verify, and correct as necessary.
A141: e - Once corrections have been made, click the Macro button below to Delete the PV & Amortization Tables.
A145: Step 7 - Repeat Steps 3-6 as needed until all checks (1i, 4d, 6a, 6b, and 6di-6diii) are correct.
A147: Step 8 - See Net Present Value calculated in cell B25 for the SBITA Liability and the SBITA Asset Cost in cell B34.
A148: Also, see Present Value Table in columns E-G,
A149: and Amortization Table in columns J-P.
A150: Note: If Implementation Period is not yet complete, then only a Development in Process Asset will be recognized at this point (cell B34 will
A151: return a value of "Not yet determined" if implementation is still in process & will also be noted as "Development in Process" in cell C31).
A152: The SBITA Liability & SBITA Asset will not be recognized until the SBITA is Put Into Service/Go-Live Date. If this is the case, please continue
A153: to track all Implementation Costs. This info will be requested in the following year's Closing Package Activity Form.
A155: Please DO NOT add SBITA implementation costs into the AZ360 Fixed Assets System. This will be done manually as the SBITA Asset
A156: includes not only the implementation costs, but also the Present Value of the Subscription Fixed Payments (Liability).

Sheet SBITA 6 - PV Calc
A1: Present Value Calculations tab - SBITA # 6 (column H) | B1: Contract # | C1: ='Data Input'!H56 -> 0
A2: Periodic Interest Rate (Section VI, #28-29 from Data Input tab) | B2: ='Data Input'!H239 -> 0
A3: Cash Flows at Beginning or End (Section IV, #21) | B3: ='Data Input'!H165 -> 0 | C3: Important:
A4: Number of payments (Section IV, #20) | B4: ='Data Input'!H157 -> 0 | C4: Do not insert/delete/move
A5: Frequency of payments (Section IV, #19) | B5: ='Data Input'!H150 -> 0 | C5: cells B2:B8
A6: Date of first payment (Section IV, #22) | B6: ='Data Input'!H171 -> 00:00:00 | C6: (macros depend on them)
A7: Date Put Into Service/Go-Live Date (#14 from Data Input tab) | B7: ='Data Input'!H132 -> 00:00:00
A8: Subscription End Date including Extensions (Section IV, #17) | B8: ='Data Input'!H145 -> 00:00:00
A10: Fixed Subscription Payment Schedule (Section V, #23 & see instructions below): | B10: Amount | C10: # of Payments
A11: Payment Amount #1 & # of Payments at this amount | B11: 0 | C11: 0
A12: Payment Amount #2 & # of Payments at this amount | B12: 0 | C12: 0
A13: Payment Amount #3 & # of Payments at this amount | B13: 0 | C13: 0
A14: Payment Amount #4 & # of Payments at this amount | B14: 0 | C14: 0
A15: Totals from add'l table below (if needed) | B15: =B102 -> 0 | C15: =C102 -> 0
A16: Total Subscription Payments (sum of all payment amounts * # of payments) | B16: =(B11*C11)+(B12*C12)+(B13*C13)+(B14*C14)+(B15) -> 0 | C16: =SUM(C11:C15) -> 0
A18: Other Payment Considerations: | C18: Answer per Data Input Tab
A19: Termination Penalty (Section V, #26) | B19: 0 | C19: ='Data Input'!H208 -> 0
A21: Total Other Payment Considerations | B21: =SUM(B19:B20) -> 0
A22: Total Undiscounted Cash Flows (Total Payments + Other Considerations) | B22: =B16+B21 -> 0
C24: Important:
A25: Liability Net Present Value (calculated after Macros below run) | B25: =SUM(G:G) -> 0 | C25: Do not insert/delete/move
C26: NPV must be cell B25
C27: (macros depend on it)
A28: Asset Adjustments (from Asset Adj tab): | B28: Asset Adj Amount
A29: Total Asset Adjustments during Current Year | B29: ='Asset Adj'!H174 -> 0
A30: EXPECTED Future Asset Adjustments (if there is an amt here, s/b DIP) | B30: ='Asset Adj'!H175 -> 0 | C30: DIP or Final?
A31: Total Asset Adjustment | B31: =SUM(B29:B30) -> 0 | C31: ='Asset Adj'!H177 -> FINAL Adj Amount
A34: Software Subscription Asset Cost (calculated after Macros below run) | B34: =IF(C31="FINAL Adj Amount",B25+B31,"Not yet determined") -> 0
A36: The Agency is not required to calculate the Present Value and/or enable Macros,
A37: but Steps 1 & 2 of the instructions below are REQUIRED to be completed.
A38: After completing Steps 1 & 2, if desired to calculate the Present Value, complete Steps 3 - 8:
A40: Note 1: First make sure your Excel settings are correct - | B40: See How to Enable Macros tab
A41: Note 2: Please do not Insert, Delete, or Move any cells, columns or rows as this could cause the Macros to fail.
A42: Note 3: The Teal Cells in columns B & C are for manual input, and the Present Value Table will need to be adjusted in column F.
A43: The Orange cells in columns B & C will automatically fill. The Present Value and Amortization Tables will be generated with the
A44: Macro buttons. Please do not make changes to the orange cells or anywhere within the Tables (except column F).
A46: Step 1 - Fill out the "Fixed Subscription Payment Schedule" above (starting on row 10).
A47: a - To calculate the Fixed Subscription Payment:
A48: i - Start with the fixed subscription periodic payments stated in the contract.
A49: ii - In addition, add "Fixed In-Substance Fees" to the above amount. "Fixed In-Substance Fees" are the Minimum Usage Costs of a variable
A50: usage fee. For Example, if a subscription includes up to 5 gigs of data used for a set fee, but charges extra for every additional gig, the
A51: minimum fee for the first 5 gigs is the "Fixed In-Substance Fee", and the per gig fees above that minimum would be the variable fees.
A52: iii - For payments that depend on an index or a rate (such as the Consumer Price Index or a market interest rate), the payment should be
A53: initially measured using the index or rate published as of the start of the subscription term.
A54: iv - EXCLUDE any variable usage fees and/or support/maintenance service fees included in the payment (see #24 & 25 in Data Input tab)
A55: b - If payments escalate over time, list the beginning payment amount (col B) & # of payments to be paid at that amount (col C), then
A56: move to line #2 and list the next payment amount & # of payments at that amount, etc.
A57: c - If an extension is deemed Reasonably Certain to be exercised, but the amount is listed as "negotiable", then use the fixed
A58: payment amount just prior to the date of extension for those unknown amounts.
A59: d - If there is an Abated or Free Rent period (skipped payment) indicated in the SBITA contract, | C59: Desc of Lease Incentives
A60: indicate that with a $0 payment amount (col B) & the number of payments to be skipped (col C). | C60: ='Data Input'!H218 -> 0
A61: Make sure to put these skipped payments in the correct order chronologically. For example, if there
A62: is a skipped payment for payment 13, list the first 12 payments on the first line, then list line #2 as
A63: $0 (col B) and 1 (col C), then line #3 as the continuing payments after the skipped payment.
A64: e - If a Bonus payment from the SBITA Vendor is included in the contract, subtract that amount from the payment closest to the proper
A65: chronological period (as described in d above). This may cause that payment amount to be negative.
A66: f - If payments are Less Often than Annually,indicate this in the Payment Schedule above by listing the 1st payment on the 1st row & a 1 in
A67: col C, then the 2nd row should show how many years to be skipped in col C ($0 in col B), then the 3rd row will show the 2nd payment.
A68: Repeat until all payments & all years are represented in the Payment Schdl (total in col C should tie to total yrs of subscription term in
A69: cell B4).
A70: g - Use the Teal box below to add any extra details, how payments change over time (For example, (a) Payment increases 5% every 10 yrs;
A71: (b) Payment recalculated every 5 yrs based on CPI, etc.), or describe payment frequency if Less Often than Annually.
A75: h - If there are not enough lines in the Payment Schedule above, use the table below to input the additional payment amounts, and the
A76: totals from the additional table will automatically be added to the Payment Schedule above. Contact the GAAP Group if you need more
A77: than 25 lines.
A78: i - Verify that the total # of payments in cell B4 is the same as the sum of col C (cell C16).
A80: Additional Subscription Payment Lines (if needed) | B80: Amount | C80: # of Payments
A81: Payment Amount #5 & # of Payments at this amount | B81: 0 | C81: 0
A82: Payment Amount #6 & # of Payments at this amount | B82: 0 | C82: 0
A83: Payment Amount #7 & # of Payments at this amount | B83: 0 | C83: 0
A84: Payment Amount #8 & # of Payments at this amount | B84: 0 | C84: 0
A85: Payment Amount #9 & # of Payments at this amount | B85: 0 | C85: 0
A86: Payment Amount #10 & # of Payments at this amount | B86: 0 | C86: 0
A87: Payment Amount #11 & # of Payments at this amount | B87: 0 | C87: 0
A88: Payment Amount #12 & # of Payments at this amount | B88: 0 | C88: 0
A89: Payment Amount #13 & # of Payments at this amount | B89: 0 | C89: 0
A90: Payment Amount #14 & # of Payments at this amount | B90: 0 | C90: 0
A91: Payment Amount #15 & # of Payments at this amount | B91: 0 | C91: 0
A92: Payment Amount #16 & # of Payments at this amount | B92: 0 | C92: 0
A93: Payment Amount #17 & # of Payments at this amount | B93: 0 | C93: 0
A94: Payment Amount #18 & # of Payments at this amount | B94: 0 | C94: 0
A95: Payment Amount #19 & # of Payments at this amount | B95: 0 | C95: 0
A96: Payment Amount #20 & # of Payments at this amount | B96: 0 | C96: 0
A97: Payment Amount #21 & # of Payments at this amount | B97: 0 | C97: 0
A98: Payment Amount #22 & # of Payments at this amount | B98: 0 | C98: 0
A99: Payment Amount #23 & # of Payments at this amount | B99: 0 | C99: 0
A100: Payment Amount #24 & # of Payments at this amount | B100: 0 | C100: 0
A101: Payment Amount #25 & # of Payments at this amount | B101: 0 | C101: 0
A102: Total Add'l Subscription Payments (will automatically be added to the Schdl above) | B102: =(B81*C81)+(B82*C82)+(B83*C83)+(B84*C84)+(B85*C85)+(B86*C86)+(B87*C87)+(B88*C88)+(B89*C89)+(B90*C90)+(B91*C91)+(B92*C92)+(B93*C93)+(B94*C94)+(B95*C95)+(B96*C96)+(B97*C97)+(B98*C98)+(B99*C99)+(B100*C100)+(B101*C101) -> 0 | C102: =SUM(C81:C101) -> 0
A105: Step 2 - Fill out the "Other Payment Considerations" section (starting on row 18) ONLY if instructed to do so on the Data Input tab
A106: The Termination Penalty line should only have an amount listed if a termination clause is deemed Reasonably Certain to be exercised
A107: based on decisions by the Agency (response from the Data Input tab is shown in col C) AND this termination will cause a Penalty to be due.
A109: Steps 3 - 8 are OPTIONAL (calculation of Present Value and Amortization Tables)
A110: Step 3 - Click the Macro button below to Generate the first 2 columns of the Present Value (PV) Table.
A113: Step 4 - Using the Payment Schedule filled out in Steps 1 & 2, fill in the Payment Amounts into col F of the PV Table.
A114: a - If there are 12 payments for the 1st payment amount, and 6 payments for the 2nd payment amount, list the 1st amount in the
A115: first 12 rows of the Table, then the 2nd amount for the next 6 rows, and do the same for the remaining payment amounts listed
A116: in the Payment Schedule until all the payments are filled in on the Table.
A117: b - Make sure not to miss any Skipped Payment periods. If the Payment Schedule indicates the 13th payment is $0, then row 13 of the
A118: Table should be $0, same as the Payment Schedule.
A119: c - If there are any amounts listed for "Other Payment Considerations", add it to the final payment. For example, if the final
A120: payment is $20,000, and there is a Termination Penalty listed for $50,000, then the final payment in the Table should be $70,000.
A121: d - Check to make sure that the sum of all the payments entered into col F of the Table is the same as the Total Undiscounted Cash
A122: Flows in cell B22.
A124: Step 5 - Click the Macro button below to Calculate Net Present Value and Generate the PV and Amortization Tables.
A128: Step 6 - Check data for accuracy:
A129: a - Check the date of the final payment in the Amortization Table and compare to Subscription End Date in cell B8. Make sure the final
A130: payment date is reasonable in comparison to the subscription End Date (within same month if payments are Monthly, within the final
A131: quarter if Quarterly, etc).
A132: b - If payments change (there are amounts in Payment Amount #2 + rows), then check the dates the amounts change in the
A133: Amort Table (col K & M) to make sure the payments change on the correct dates as per the SBITA Contract.
A134: c - If 6a and 6b are BOTH correct, skip to Step 8 (Do NOT click the Start Over Macro Button).
A135: d - If 6a or 6b does not appear to be correct:
A136: i - Double-check the Instructions above (Steps 1 - 6), including the check for # of payments in 1i & check for Table payments in 4d.
A137: ii - Double-check cells B2-B8 by reviewing the SBITA Contract. These cells automatically filled based on answers in the Data Input
A138: tab. Make any necessary corrections in the Data Input tab (NOT in cells B2-B8) - the corresponding question #s are referenced above.
A139: iii - Double-Check the Payment Schedule and Other Payment Considerations sections. Compare back to the SBITA contract to
A140: verify, and correct as necessary.
A141: e - Once corrections have been made, click the Macro button below to Delete the PV & Amortization Tables.
A145: Step 7 - Repeat Steps 3-6 as needed until all checks (1i, 4d, 6a, 6b, and 6di-6diii) are correct.
A147: Step 8 - See Net Present Value calculated in cell B25 for the SBITA Liability and the SBITA Asset Cost in cell B34.
A148: Also, see Present Value Table in columns E-G,
A149: and Amortization Table in columns J-P.
A150: Note: If Implementation Period is not yet complete, then only a Development in Process Asset will be recognized at this point (cell B34 will
A151: return a value of "Not yet determined" if implementation is still in process & will also be noted as "Development in Process" in cell C31).
A152: The SBITA Liability & SBITA Asset will not be recognized until the SBITA is Put Into Service/Go-Live Date. If this is the case, please continue
A153: to track all Implementation Costs. This info will be requested in the following year's Closing Package Activity Form.
A155: Please DO NOT add SBITA implementation costs into the AZ360 Fixed Assets System. This will be done manually as the SBITA Asset
A156: includes not only the implementation costs, but also the Present Value of the Subscription Fixed Payments (Liability).

Sheet SBITA 7 - PV Calc
A1: Present Value Calculations tab - SBITA # 7 (column I) | B1: Contract # | C1: ='Data Input'!I56 -> 0
A2: Periodic Interest Rate (Section VI, #28-29 from Data Input tab) | B2: ='Data Input'!I239 -> 0
A3: Cash Flows at Beginning or End (Section IV, #21) | B3: ='Data Input'!I165 -> 0 | C3: Important:
A4: Number of payments (Section IV, #20) | B4: ='Data Input'!I157 -> 0 | C4: Do not insert/delete/move
A5: Frequency of payments (Section IV, #19) | B5: ='Data Input'!I150 -> 0 | C5: cells B2:B8
A6: Date of first payment (Section IV, #22) | B6: ='Data Input'!I171 -> 00:00:00 | C6: (macros depend on them)
A7: Date Put Into Service/Go-Live Date (#14 from Data Input tab) | B7: ='Data Input'!I132 -> 00:00:00
A8: Subscription End Date including Extensions (Section IV, #17) | B8: ='Data Input'!I145 -> 00:00:00
A10: Fixed Subscription Payment Schedule (Section V, #23 & see instructions below): | B10: Amount | C10: # of Payments
A11: Payment Amount #1 & # of Payments at this amount | B11: 0 | C11: 0
A12: Payment Amount #2 & # of Payments at this amount | B12: 0 | C12: 0
A13: Payment Amount #3 & # of Payments at this amount | B13: 0 | C13: 0
A14: Payment Amount #4 & # of Payments at this amount | B14: 0 | C14: 0
A15: Totals from add'l table below (if needed) | B15: =B102 -> 0 | C15: =C102 -> 0
A16: Total Subscription Payments (sum of all payment amounts * # of payments) | B16: =(B11*C11)+(B12*C12)+(B13*C13)+(B14*C14)+(B15) -> 0 | C16: =SUM(C11:C15) -> 0
A18: Other Payment Considerations: | C18: Answer per Data Input Tab
A19: Termination Penalty (Section V, #26) | B19: 0 | C19: ='Data Input'!I208 -> 0
A21: Total Other Payment Considerations | B21: =SUM(B19:B20) -> 0
A22: Total Undiscounted Cash Flows (Total Payments + Other Considerations) | B22: =B16+B21 -> 0
C24: Important:
A25: Liability Net Present Value (calculated after Macros below run) | B25: =SUM(G:G) -> 0 | C25: Do not insert/delete/move
C26: NPV must be cell B25
C27: (macros depend on it)
A28: Asset Adjustments (from Asset Adj tab): | B28: Asset Adj Amount
A29: Total Asset Adjustments during Current Year | B29: ='Asset Adj'!I174 -> 0
A30: EXPECTED Future Asset Adjustments (if there is an amt here, s/b DIP) | B30: ='Asset Adj'!I175 -> 0 | C30: DIP or Final?
A31: Total Asset Adjustment | B31: =SUM(B29:B30) -> 0 | C31: ='Asset Adj'!I177 -> FINAL Adj Amount
A34: Software Subscription Asset Cost (calculated after Macros below run) | B34: =IF(C31="FINAL Adj Amount",B25+B31,"Not yet determined") -> 0
A36: The Agency is not required to calculate the Present Value and/or enable Macros,
A37: but Steps 1 & 2 of the instructions below are REQUIRED to be completed.
A38: After completing Steps 1 & 2, if desired to calculate the Present Value, complete Steps 3 - 8:
A40: Note 1: First make sure your Excel settings are correct - | B40: See How to Enable Macros tab
A41: Note 2: Please do not Insert, Delete, or Move any cells, columns or rows as this could cause the Macros to fail.
A42: Note 3: The Teal Cells in columns B & C are for manual input, and the Present Value Table will need to be adjusted in column F.
A43: The Orange cells in columns B & C will automatically fill. The Present Value and Amortization Tables will be generated with the
A44: Macro buttons. Please do not make changes to the orange cells or anywhere within the Tables (except column F).
A46: Step 1 - Fill out the "Fixed Subscription Payment Schedule" above (starting on row 10).
A47: a - To calculate the Fixed Subscription Payment:
A48: i - Start with the fixed subscription periodic payments stated in the contract.
A49: ii - In addition, add "Fixed In-Substance Fees" to the above amount. "Fixed In-Substance Fees" are the Minimum Usage Costs of a variable
A50: usage fee. For Example, if a subscription includes up to 5 gigs of data used for a set fee, but charges extra for every additional gig, the
A51: minimum fee for the first 5 gigs is the "Fixed In-Substance Fee", and the per gig fees above that minimum would be the variable fees.
A52: iii - For payments that depend on an index or a rate (such as the Consumer Price Index or a market interest rate), the payment should be
A53: initially measured using the index or rate published as of the start of the subscription term.
A54: iv - EXCLUDE any variable usage fees and/or support/maintenance service fees included in the payment (see #24 & 25 in Data Input tab)
A55: b - If payments escalate over time, list the beginning payment amount (col B) & # of payments to be paid at that amount (col C), then
A56: move to line #2 and list the next payment amount & # of payments at that amount, etc.
A57: c - If an extension is deemed Reasonably Certain to be exercised, but the amount is listed as "negotiable", then use the fixed
A58: payment amount just prior to the date of extension for those unknown amounts.
A59: d - If there is an Abated or Free Rent period (skipped payment) indicated in the SBITA contract, | C59: Desc of Lease Incentives
A60: indicate that with a $0 payment amount (col B) & the number of payments to be skipped (col C). | C60: ='Data Input'!I218 -> 0
A61: Make sure to put these skipped payments in the correct order chronologically. For example, if there
A62: is a skipped payment for payment 13, list the first 12 payments on the first line, then list line #2 as
A63: $0 (col B) and 1 (col C), then line #3 as the continuing payments after the skipped payment.
A64: e - If a Bonus payment from the SBITA Vendor is included in the contract, subtract that amount from the payment closest to the proper
A65: chronological period (as described in d above). This may cause that payment amount to be negative.
A66: f - If payments are Less Often than Annually,indicate this in the Payment Schedule above by listing the 1st payment on the 1st row & a 1 in
A67: col C, then the 2nd row should show how many years to be skipped in col C ($0 in col B), then the 3rd row will show the 2nd payment.
A68: Repeat until all payments & all years are represented in the Payment Schdl (total in col C should tie to total yrs of subscription term in
A69: cell B4).
A70: g - Use the Teal box below to add any extra details, how payments change over time (For example, (a) Payment increases 5% every 10 yrs;
A71: (b) Payment recalculated every 5 yrs based on CPI, etc.), or describe payment frequency if Less Often than Annually.
A75: h - If there are not enough lines in the Payment Schedule above, use the table below to input the additional payment amounts, and the
A76: totals from the additional table will automatically be added to the Payment Schedule above. Contact the GAAP Group if you need more
A77: than 25 lines.
A78: i - Verify that the total # of payments in cell B4 is the same as the sum of col C (cell C16).
A80: Additional Subscription Payment Lines (if needed) | B80: Amount | C80: # of Payments
A81: Payment Amount #5 & # of Payments at this amount | B81: 0 | C81: 0
A82: Payment Amount #6 & # of Payments at this amount | B82: 0 | C82: 0
A83: Payment Amount #7 & # of Payments at this amount | B83: 0 | C83: 0
A84: Payment Amount #8 & # of Payments at this amount | B84: 0 | C84: 0
A85: Payment Amount #9 & # of Payments at this amount | B85: 0 | C85: 0
A86: Payment Amount #10 & # of Payments at this amount | B86: 0 | C86: 0
A87: Payment Amount #11 & # of Payments at this amount | B87: 0 | C87: 0
A88: Payment Amount #12 & # of Payments at this amount | B88: 0 | C88: 0
A89: Payment Amount #13 & # of Payments at this amount | B89: 0 | C89: 0
A90: Payment Amount #14 & # of Payments at this amount | B90: 0 | C90: 0
A91: Payment Amount #15 & # of Payments at this amount | B91: 0 | C91: 0
A92: Payment Amount #16 & # of Payments at this amount | B92: 0 | C92: 0
A93: Payment Amount #17 & # of Payments at this amount | B93: 0 | C93: 0
A94: Payment Amount #18 & # of Payments at this amount | B94: 0 | C94: 0
A95: Payment Amount #19 & # of Payments at this amount | B95: 0 | C95: 0
A96: Payment Amount #20 & # of Payments at this amount | B96: 0 | C96: 0
A97: Payment Amount #21 & # of Payments at this amount | B97: 0 | C97: 0
A98: Payment Amount #22 & # of Payments at this amount | B98: 0 | C98: 0
A99: Payment Amount #23 & # of Payments at this amount | B99: 0 | C99: 0
A100: Payment Amount #24 & # of Payments at this amount | B100: 0 | C100: 0
A101: Payment Amount #25 & # of Payments at this amount | B101: 0 | C101: 0
A102: Total Add'l Subscription Payments (will automatically be added to the Schdl above) | B102: =(B81*C81)+(B82*C82)+(B83*C83)+(B84*C84)+(B85*C85)+(B86*C86)+(B87*C87)+(B88*C88)+(B89*C89)+(B90*C90)+(B91*C91)+(B92*C92)+(B93*C93)+(B94*C94)+(B95*C95)+(B96*C96)+(B97*C97)+(B98*C98)+(B99*C99)+(B100*C100)+(B101*C101) -> 0 | C102: =SUM(C81:C101) -> 0
A105: Step 2 - Fill out the "Other Payment Considerations" section (starting on row 18) ONLY if instructed to do so on the Data Input tab
A106: The Termination Penalty line should only have an amount listed if a termination clause is deemed Reasonably Certain to be exercised
A107: based on decisions by the Agency (response from the Data Input tab is shown in col C) AND this termination will cause a Penalty to be due.
A109: Steps 3 - 8 are OPTIONAL (calculation of Present Value and Amortization Tables)
A110: Step 3 - Click the Macro button below to Generate the first 2 columns of the Present Value (PV) Table.
A113: Step 4 - Using the Payment Schedule filled out in Steps 1 & 2, fill in the Payment Amounts into col F of the PV Table.
A114: a - If there are 12 payments for the 1st payment amount, and 6 payments for the 2nd payment amount, list the 1st amount in the
A115: first 12 rows of the Table, then the 2nd amount for the next 6 rows, and do the same for the remaining payment amounts listed
A116: in the Payment Schedule until all the payments are filled in on the Table.
A117: b - Make sure not to miss any Skipped Payment periods. If the Payment Schedule indicates the 13th payment is $0, then row 13 of the
A118: Table should be $0, same as the Payment Schedule.
A119: c - If there are any amounts listed for "Other Payment Considerations", add it to the final payment. For example, if the final
A120: payment is $20,000, and there is a Termination Penalty listed for $50,000, then the final payment in the Table should be $70,000.
A121: d - Check to make sure that the sum of all the payments entered into col F of the Table is the same as the Total Undiscounted Cash
A122: Flows in cell B22.
A124: Step 5 - Click the Macro button below to Calculate Net Present Value and Generate the PV and Amortization Tables.
A128: Step 6 - Check data for accuracy:
A129: a - Check the date of the final payment in the Amortization Table and compare to Subscription End Date in cell B8. Make sure the final
A130: payment date is reasonable in comparison to the subscription End Date (within same month if payments are Monthly, within the final
A131: quarter if Quarterly, etc).
A132: b - If payments change (there are amounts in Payment Amount #2 + rows), then check the dates the amounts change in the
A133: Amort Table (col K & M) to make sure the payments change on the correct dates as per the SBITA Contract.
A134: c - If 6a and 6b are BOTH correct, skip to Step 8 (Do NOT click the Start Over Macro Button).
A135: d - If 6a or 6b does not appear to be correct:
A136: i - Double-check the Instructions above (Steps 1 - 6), including the check for # of payments in 1i & check for Table payments in 4d.
A137: ii - Double-check cells B2-B8 by reviewing the SBITA Contract. These cells automatically filled based on answers in the Data Input
A138: tab. Make any necessary corrections in the Data Input tab (NOT in cells B2-B8) - the corresponding question #s are referenced above.
A139: iii - Double-Check the Payment Schedule and Other Payment Considerations sections. Compare back to the SBITA contract to
A140: verify, and correct as necessary.
A141: e - Once corrections have been made, click the Macro button below to Delete the PV & Amortization Tables.
A145: Step 7 - Repeat Steps 3-6 as needed until all checks (1i, 4d, 6a, 6b, and 6di-6diii) are correct.
A147: Step 8 - See Net Present Value calculated in cell B25 for the SBITA Liability and the SBITA Asset Cost in cell B34.
A148: Also, see Present Value Table in columns E-G,
A149: and Amortization Table in columns J-P.
A150: Note: If Implementation Period is not yet complete, then only a Development in Process Asset will be recognized at this point (cell B34 will
A151: return a value of "Not yet determined" if implementation is still in process & will also be noted as "Development in Process" in cell C31).
A152: The SBITA Liability & SBITA Asset will not be recognized until the SBITA is Put Into Service/Go-Live Date. If this is the case, please continue
A153: to track all Implementation Costs. This info will be requested in the following year's Closing Package Activity Form.
A155: Please DO NOT add SBITA implementation costs into the AZ360 Fixed Assets System. This will be done manually as the SBITA Asset
A156: includes not only the implementation costs, but also the Present Value of the Subscription Fixed Payments (Liability).

Sheet SBITA 8 - PV Calc
A1: Present Value Calculations tab - SBITA # 8 (column J) | B1: Contract # | C1: ='Data Input'!J56 -> 0
A2: Periodic Interest Rate (Section VI, #28-29 from Data Input tab) | B2: ='Data Input'!J239 -> 0
A3: Cash Flows at Beginning or End (Section IV, #21) | B3: ='Data Input'!J165 -> 0 | C3: Important:
A4: Number of payments (Section IV, #20) | B4: ='Data Input'!J157 -> 0 | C4: Do not insert/delete/move
A5: Frequency of payments (Section IV, #19) | B5: ='Data Input'!J150 -> 0 | C5: cells B2:B8
A6: Date of first payment (Section IV, #22) | B6: ='Data Input'!J171 -> 00:00:00 | C6: (macros depend on them)
A7: Date Put Into Service/Go-Live Date (#14 from Data Input tab) | B7: ='Data Input'!J132 -> 00:00:00
A8: Subscription End Date including Extensions (Section IV, #17) | B8: ='Data Input'!J145 -> 00:00:00
A10: Fixed Subscription Payment Schedule (Section V, #23 & see instructions below): | B10: Amount | C10: # of Payments
A11: Payment Amount #1 & # of Payments at this amount | B11: 0 | C11: 0
A12: Payment Amount #2 & # of Payments at this amount | B12: 0 | C12: 0
A13: Payment Amount #3 & # of Payments at this amount | B13: 0 | C13: 0
A14: Payment Amount #4 & # of Payments at this amount | B14: 0 | C14: 0
A15: Totals from add'l table below (if needed) | B15: =B102 -> 0 | C15: =C102 -> 0
A16: Total Subscription Payments (sum of all payment amounts * # of payments) | B16: =(B11*C11)+(B12*C12)+(B13*C13)+(B14*C14)+(B15) -> 0 | C16: =SUM(C11:C15) -> 0
A18: Other Payment Considerations: | C18: Answer per Data Input Tab
A19: Termination Penalty (Section V, #26) | B19: 0 | C19: ='Data Input'!J208 -> 0
A21: Total Other Payment Considerations | B21: =SUM(B19:B20) -> 0
A22: Total Undiscounted Cash Flows (Total Payments + Other Considerations) | B22: =B16+B21 -> 0
C24: Important:
A25: Liability Net Present Value (calculated after Macros below run) | B25: =SUM(G:G) -> 0 | C25: Do not insert/delete/move
C26: NPV must be cell B25
C27: (macros depend on it)
A28: Asset Adjustments (from Asset Adj tab): | B28: Asset Adj Amount
A29: Total Asset Adjustments during Current Year | B29: ='Asset Adj'!J174 -> 0
A30: EXPECTED Future Asset Adjustments (if there is an amt here, s/b DIP) | B30: ='Asset Adj'!J175 -> 0 | C30: DIP or Final?
A31: Total Asset Adjustment | B31: =SUM(B29:B30) -> 0 | C31: ='Asset Adj'!J177 -> FINAL Adj Amount
A34: Software Subscription Asset Cost (calculated after Macros below run) | B34: =IF(C31="FINAL Adj Amount",B25+B31,"Not yet determined") -> 0
A36: The Agency is not required to calculate the Present Value and/or enable Macros,
A37: but Steps 1 & 2 of the instructions below are REQUIRED to be completed.
A38: After completing Steps 1 & 2, if desired to calculate the Present Value, complete Steps 3 - 8:
A40: Note 1: First make sure your Excel settings are correct - | B40: See How to Enable Macros tab
A41: Note 2: Please do not Insert, Delete, or Move any cells, columns or rows as this could cause the Macros to fail.
A42: Note 3: The Teal Cells in columns B & C are for manual input, and the Present Value Table will need to be adjusted in column F.
A43: The Orange cells in columns B & C will automatically fill. The Present Value and Amortization Tables will be generated with the
A44: Macro buttons. Please do not make changes to the orange cells or anywhere within the Tables (except column F).
A46: Step 1 - Fill out the "Fixed Subscription Payment Schedule" above (starting on row 10).
A47: a - To calculate the Fixed Subscription Payment:
A48: i - Start with the fixed subscription periodic payments stated in the contract.
A49: ii - In addition, add "Fixed In-Substance Fees" to the above amount. "Fixed In-Substance Fees" are the Minimum Usage Costs of a variable
A50: usage fee. For Example, if a subscription includes up to 5 gigs of data used for a set fee, but charges extra for every additional gig, the
A51: minimum fee for the first 5 gigs is the "Fixed In-Substance Fee", and the per gig fees above that minimum would be the variable fees.
A52: iii - For payments that depend on an index or a rate (such as the Consumer Price Index or a market interest rate), the payment should be
A53: initially measured using the index or rate published as of the start of the subscription term.
A54: iv - EXCLUDE any variable usage fees and/or support/maintenance service fees included in the payment (see #24 & 25 in Data Input tab)
A55: b - If payments escalate over time, list the beginning payment amount (col B) & # of payments to be paid at that amount (col C), then
A56: move to line #2 and list the next payment amount & # of payments at that amount, etc.
A57: c - If an extension is deemed Reasonably Certain to be exercised, but the amount is listed as "negotiable", then use the fixed
A58: payment amount just prior to the date of extension for those unknown amounts.
A59: d - If there is an Abated or Free Rent period (skipped payment) indicated in the SBITA contract, | C59: Desc of Lease Incentives
A60: indicate that with a $0 payment amount (col B) & the number of payments to be skipped (col C). | C60: ='Data Input'!J218 -> 0
A61: Make sure to put these skipped payments in the correct order chronologically. For example, if there
A62: is a skipped payment for payment 13, list the first 12 payments on the first line, then list line #2 as
A63: $0 (col B) and 1 (col C), then line #3 as the continuing payments after the skipped payment.
A64: e - If a Bonus payment from the SBITA Vendor is included in the contract, subtract that amount from the payment closest to the proper
A65: chronological period (as described in d above). This may cause that payment amount to be negative.
A66: f - If payments are Less Often than Annually,indicate this in the Payment Schedule above by listing the 1st payment on the 1st row & a 1 in
A67: col C, then the 2nd row should show how many years to be skipped in col C ($0 in col B), then the 3rd row will show the 2nd payment.
A68: Repeat until all payments & all years are represented in the Payment Schdl (total in col C should tie to total yrs of subscription term in
A69: cell B4).
A70: g - Use the Teal box below to add any extra details, how payments change over time (For example, (a) Payment increases 5% every 10 yrs;
A71: (b) Payment recalculated every 5 yrs based on CPI, etc.), or describe payment frequency if Less Often than Annually.
A75: h - If there are not enough lines in the Payment Schedule above, use the table below to input the additional payment amounts, and the
A76: totals from the additional table will automatically be added to the Payment Schedule above. Contact the GAAP Group if you need more
A77: than 25 lines.
A78: i - Verify that the total # of payments in cell B4 is the same as the sum of col C (cell C16).
A80: Additional Subscription Payment Lines (if needed) | B80: Amount | C80: # of Payments
A81: Payment Amount #5 & # of Payments at this amount | B81: 0 | C81: 0
A82: Payment Amount #6 & # of Payments at this amount | B82: 0 | C82: 0
A83: Payment Amount #7 & # of Payments at this amount | B83: 0 | C83: 0
A84: Payment Amount #8 & # of Payments at this amount | B84: 0 | C84: 0
A85: Payment Amount #9 & # of Payments at this amount | B85: 0 | C85: 0
A86: Payment Amount #10 & # of Payments at this amount | B86: 0 | C86: 0
A87: Payment Amount #11 & # of Payments at this amount | B87: 0 | C87: 0
A88: Payment Amount #12 & # of Payments at this amount | B88: 0 | C88: 0
A89: Payment Amount #13 & # of Payments at this amount | B89: 0 | C89: 0
A90: Payment Amount #14 & # of Payments at this amount | B90: 0 | C90: 0
A91: Payment Amount #15 & # of Payments at this amount | B91: 0 | C91: 0
A92: Payment Amount #16 & # of Payments at this amount | B92: 0 | C92: 0
A93: Payment Amount #17 & # of Payments at this amount | B93: 0 | C93: 0
A94: Payment Amount #18 & # of Payments at this amount | B94: 0 | C94: 0
A95: Payment Amount #19 & # of Payments at this amount | B95: 0 | C95: 0
A96: Payment Amount #20 & # of Payments at this amount | B96: 0 | C96: 0
A97: Payment Amount #21 & # of Payments at this amount | B97: 0 | C97: 0
A98: Payment Amount #22 & # of Payments at this amount | B98: 0 | C98: 0
A99: Payment Amount #23 & # of Payments at this amount | B99: 0 | C99: 0
A100: Payment Amount #24 & # of Payments at this amount | B100: 0 | C100: 0
A101: Payment Amount #25 & # of Payments at this amount | B101: 0 | C101: 0
A102: Total Add'l Subscription Payments (will automatically be added to the Schdl above) | B102: =(B81*C81)+(B82*C82)+(B83*C83)+(B84*C84)+(B85*C85)+(B86*C86)+(B87*C87)+(B88*C88)+(B89*C89)+(B90*C90)+(B91*C91)+(B92*C92)+(B93*C93)+(B94*C94)+(B95*C95)+(B96*C96)+(B97*C97)+(B98*C98)+(B99*C99)+(B100*C100)+(B101*C101) -> 0 | C102: =SUM(C81:C101) -> 0
A105: Step 2 - Fill out the "Other Payment Considerations" section (starting on row 18) ONLY if instructed to do so on the Data Input tab
A106: The Termination Penalty line should only have an amount listed if a termination clause is deemed Reasonably Certain to be exercised
A107: based on decisions by the Agency (response from the Data Input tab is shown in col C) AND this termination will cause a Penalty to be due.
A109: Steps 3 - 8 are OPTIONAL (calculation of Present Value and Amortization Tables)
A110: Step 3 - Click the Macro button below to Generate the first 2 columns of the Present Value (PV) Table.
A113: Step 4 - Using the Payment Schedule filled out in Steps 1 & 2, fill in the Payment Amounts into col F of the PV Table.
A114: a - If there are 12 payments for the 1st payment amount, and 6 payments for the 2nd payment amount, list the 1st amount in the
A115: first 12 rows of the Table, then the 2nd amount for the next 6 rows, and do the same for the remaining payment amounts listed
A116: in the Payment Schedule until all the payments are filled in on the Table.
A117: b - Make sure not to miss any Skipped Payment periods. If the Payment Schedule indicates the 13th payment is $0, then row 13 of the
A118: Table should be $0, same as the Payment Schedule.
A119: c - If there are any amounts listed for "Other Payment Considerations", add it to the final payment. For example, if the final
A120: payment is $20,000, and there is a Termination Penalty listed for $50,000, then the final payment in the Table should be $70,000.
A121: d - Check to make sure that the sum of all the payments entered into col F of the Table is the same as the Total Undiscounted Cash
A122: Flows in cell B22.
A124: Step 5 - Click the Macro button below to Calculate Net Present Value and Generate the PV and Amortization Tables.
A128: Step 6 - Check data for accuracy:
A129: a - Check the date of the final payment in the Amortization Table and compare to Subscription End Date in cell B8. Make sure the final
A130: payment date is reasonable in comparison to the subscription End Date (within same month if payments are Monthly, within the final
A131: quarter if Quarterly, etc).
A132: b - If payments change (there are amounts in Payment Amount #2 + rows), then check the dates the amounts change in the
A133: Amort Table (col K & M) to make sure the payments change on the correct dates as per the SBITA Contract.
A134: c - If 6a and 6b are BOTH correct, skip to Step 8 (Do NOT click the Start Over Macro Button).
A135: d - If 6a or 6b does not appear to be correct:
A136: i - Double-check the Instructions above (Steps 1 - 6), including the check for # of payments in 1i & check for Table payments in 4d.
A137: ii - Double-check cells B2-B8 by reviewing the SBITA Contract. These cells automatically filled based on answers in the Data Input
A138: tab. Make any necessary corrections in the Data Input tab (NOT in cells B2-B8) - the corresponding question #s are referenced above.
A139: iii - Double-Check the Payment Schedule and Other Payment Considerations sections. Compare back to the SBITA contract to
A140: verify, and correct as necessary.
A141: e - Once corrections have been made, click the Macro button below to Delete the PV & Amortization Tables.
A145: Step 7 - Repeat Steps 3-6 as needed until all checks (1i, 4d, 6a, 6b, and 6di-6diii) are correct.
A147: Step 8 - See Net Present Value calculated in cell B25 for the SBITA Liability and the SBITA Asset Cost in cell B34.
A148: Also, see Present Value Table in columns E-G,
A149: and Amortization Table in columns J-P.
A150: Note: If Implementation Period is not yet complete, then only a Development in Process Asset will be recognized at this point (cell B34 will
A151: return a value of "Not yet determined" if implementation is still in process & will also be noted as "Development in Process" in cell C31).
A152: The SBITA Liability & SBITA Asset will not be recognized until the SBITA is Put Into Service/Go-Live Date. If this is the case, please continue
A153: to track all Implementation Costs. This info will be requested in the following year's Closing Package Activity Form.
A155: Please DO NOT add SBITA implementation costs into the AZ360 Fixed Assets System. This will be done manually as the SBITA Asset
A156: includes not only the implementation costs, but also the Present Value of the Subscription Fixed Payments (Liability).

Sheet SBITA 9 - PV Calc
A1: Present Value Calculations tab - SBITA # 9 (column K) | B1: Contract # | C1: ='Data Input'!K56 -> 0
A2: Periodic Interest Rate (Section VI, #28-29 from Data Input tab) | B2: ='Data Input'!K239 -> 0
A3: Cash Flows at Beginning or End (Section IV, #21) | B3: ='Data Input'!K165 -> 0 | C3: Important:
A4: Number of payments (Section IV, #20) | B4: ='Data Input'!K157 -> 0 | C4: Do not insert/delete/move
A5: Frequency of payments (Section IV, #19) | B5: ='Data Input'!K150 -> 0 | C5: cells B2:B8
A6: Date of first payment (Section IV, #22) | B6: ='Data Input'!K171 -> 00:00:00 | C6: (macros depend on them)
A7: Date Put Into Service/Go-Live Date (#14 from Data Input tab) | B7: ='Data Input'!K132 -> 00:00:00
A8: Subscription End Date including Extensions (Section IV, #17) | B8: ='Data Input'!K145 -> 00:00:00
A10: Fixed Subscription Payment Schedule (Section V, #23 & see instructions below): | B10: Amount | C10: # of Payments
A11: Payment Amount #1 & # of Payments at this amount | B11: 0 | C11: 0
A12: Payment Amount #2 & # of Payments at this amount | B12: 0 | C12: 0
A13: Payment Amount #3 & # of Payments at this amount | B13: 0 | C13: 0
A14: Payment Amount #4 & # of Payments at this amount | B14: 0 | C14: 0
A15: Totals from add'l table below (if needed) | B15: =B102 -> 0 | C15: =C102 -> 0
A16: Total Subscription Payments (sum of all payment amounts * # of payments) | B16: =(B11*C11)+(B12*C12)+(B13*C13)+(B14*C14)+(B15) -> 0 | C16: =SUM(C11:C15) -> 0
A18: Other Payment Considerations: | C18: Answer per Data Input Tab
A19: Termination Penalty (Section V, #26) | B19: 0 | C19: ='Data Input'!K208 -> 0
A21: Total Other Payment Considerations | B21: =SUM(B19:B20) -> 0
A22: Total Undiscounted Cash Flows (Total Payments + Other Considerations) | B22: =B16+B21 -> 0
C24: Important:
A25: Liability Net Present Value (calculated after Macros below run) | B25: =SUM(G:G) -> 0 | C25: Do not insert/delete/move
C26: NPV must be cell B25
C27: (macros depend on it)
A28: Asset Adjustments (from Asset Adj tab): | B28: Asset Adj Amount
A29: Total Asset Adjustments during Current Year | B29: ='Asset Adj'!K174 -> 0
A30: EXPECTED Future Asset Adjustments (if there is an amt here, s/b DIP) | B30: ='Asset Adj'!K175 -> 0 | C30: DIP or Final?
A31: Total Asset Adjustment | B31: =SUM(B29:B30) -> 0 | C31: ='Asset Adj'!K177 -> FINAL Adj Amount
A34: Software Subscription Asset Cost (calculated after Macros below run) | B34: =IF(C31="FINAL Adj Amount",B25+B31,"Not yet determined") -> 0
A36: The Agency is not required to calculate the Present Value and/or enable Macros,
A37: but Steps 1 & 2 of the instructions below are REQUIRED to be completed.
A38: After completing Steps 1 & 2, if desired to calculate the Present Value, complete Steps 3 - 8:
A40: Note 1: First make sure your Excel settings are correct - | B40: See How to Enable Macros tab
A41: Note 2: Please do not Insert, Delete, or Move any cells, columns or rows as this could cause the Macros to fail.
A42: Note 3: The Teal Cells in columns B & C are for manual input, and the Present Value Table will need to be adjusted in column F.
A43: The Orange cells in columns B & C will automatically fill. The Present Value and Amortization Tables will be generated with the
A44: Macro buttons. Please do not make changes to the orange cells or anywhere within the Tables (except column F).
A46: Step 1 - Fill out the "Fixed Subscription Payment Schedule" above (starting on row 10).
A47: a - To calculate the Fixed Subscription Payment:
A48: i - Start with the fixed subscription periodic payments stated in the contract.
A49: ii - In addition, add "Fixed In-Substance Fees" to the above amount. "Fixed In-Substance Fees" are the Minimum Usage Costs of a variable
A50: usage fee. For Example, if a subscription includes up to 5 gigs of data used for a set fee, but charges extra for every additional gig, the
A51: minimum fee for the first 5 gigs is the "Fixed In-Substance Fee", and the per gig fees above that minimum would be the variable fees.
A52: iii - For payments that depend on an index or a rate (such as the Consumer Price Index or a market interest rate), the payment should be
A53: initially measured using the index or rate published as of the start of the subscription term.
A54: iv - EXCLUDE any variable usage fees and/or support/maintenance service fees included in the payment (see #24 & 25 in Data Input tab)
A55: b - If payments escalate over time, list the beginning payment amount (col B) & # of payments to be paid at that amount (col C), then
A56: move to line #2 and list the next payment amount & # of payments at that amount, etc.
A57: c - If an extension is deemed Reasonably Certain to be exercised, but the amount is listed as "negotiable", then use the fixed
A58: payment amount just prior to the date of extension for those unknown amounts.
A59: d - If there is an Abated or Free Rent period (skipped payment) indicated in the SBITA contract, | C59: Desc of Lease Incentives
A60: indicate that with a $0 payment amount (col B) & the number of payments to be skipped (col C). | C60: ='Data Input'!K218 -> 0
A61: Make sure to put these skipped payments in the correct order chronologically. For example, if there
A62: is a skipped payment for payment 13, list the first 12 payments on the first line, then list line #2 as
A63: $0 (col B) and 1 (col C), then line #3 as the continuing payments after the skipped payment.
A64: e - If a Bonus payment from the SBITA Vendor is included in the contract, subtract that amount from the payment closest to the proper
A65: chronological period (as described in d above). This may cause that payment amount to be negative.
A66: f - If payments are Less Often than Annually,indicate this in the Payment Schedule above by listing the 1st payment on the 1st row & a 1 in
A67: col C, then the 2nd row should show how many years to be skipped in col C ($0 in col B), then the 3rd row will show the 2nd payment.
A68: Repeat until all payments & all years are represented in the Payment Schdl (total in col C should tie to total yrs of subscription term in
A69: cell B4).
A70: g - Use the Teal box below to add any extra details, how payments change over time (For example, (a) Payment increases 5% every 10 yrs;
A71: (b) Payment recalculated every 5 yrs based on CPI, etc.), or describe payment frequency if Less Often than Annually.
A75: h - If there are not enough lines in the Payment Schedule above, use the table below to input the additional payment amounts, and the
A76: totals from the additional table will automatically be added to the Payment Schedule above. Contact the GAAP Group if you need more
A77: than 25 lines.
A78: i - Verify that the total # of payments in cell B4 is the same as the sum of col C (cell C16).
A80: Additional Subscription Payment Lines (if needed) | B80: Amount | C80: # of Payments
A81: Payment Amount #5 & # of Payments at this amount | B81: 0 | C81: 0
A82: Payment Amount #6 & # of Payments at this amount | B82: 0 | C82: 0
A83: Payment Amount #7 & # of Payments at this amount | B83: 0 | C83: 0
A84: Payment Amount #8 & # of Payments at this amount | B84: 0 | C84: 0
A85: Payment Amount #9 & # of Payments at this amount | B85: 0 | C85: 0
A86: Payment Amount #10 & # of Payments at this amount | B86: 0 | C86: 0
A87: Payment Amount #11 & # of Payments at this amount | B87: 0 | C87: 0
A88: Payment Amount #12 & # of Payments at this amount | B88: 0 | C88: 0
A89: Payment Amount #13 & # of Payments at this amount | B89: 0 | C89: 0
A90: Payment Amount #14 & # of Payments at this amount | B90: 0 | C90: 0
A91: Payment Amount #15 & # of Payments at this amount | B91: 0 | C91: 0
A92: Payment Amount #16 & # of Payments at this amount | B92: 0 | C92: 0
A93: Payment Amount #17 & # of Payments at this amount | B93: 0 | C93: 0
A94: Payment Amount #18 & # of Payments at this amount | B94: 0 | C94: 0
A95: Payment Amount #19 & # of Payments at this amount | B95: 0 | C95: 0
A96: Payment Amount #20 & # of Payments at this amount | B96: 0 | C96: 0
A97: Payment Amount #21 & # of Payments at this amount | B97: 0 | C97: 0
A98: Payment Amount #22 & # of Payments at this amount | B98: 0 | C98: 0
A99: Payment Amount #23 & # of Payments at this amount | B99: 0 | C99: 0
A100: Payment Amount #24 & # of Payments at this amount | B100: 0 | C100: 0
A101: Payment Amount #25 & # of Payments at this amount | B101: 0 | C101: 0
A102: Total Add'l Subscription Payments (will automatically be added to the Schdl above) | B102: =(B81*C81)+(B82*C82)+(B83*C83)+(B84*C84)+(B85*C85)+(B86*C86)+(B87*C87)+(B88*C88)+(B89*C89)+(B90*C90)+(B91*C91)+(B92*C92)+(B93*C93)+(B94*C94)+(B95*C95)+(B96*C96)+(B97*C97)+(B98*C98)+(B99*C99)+(B100*C100)+(B101*C101) -> 0 | C102: =SUM(C81:C101) -> 0
A105: Step 2 - Fill out the "Other Payment Considerations" section (starting on row 18) ONLY if instructed to do so on the Data Input tab
A106: The Termination Penalty line should only have an amount listed if a termination clause is deemed Reasonably Certain to be exercised
A107: based on decisions by the Agency (response from the Data Input tab is shown in col C) AND this termination will cause a Penalty to be due.
A109: Steps 3 - 8 are OPTIONAL (calculation of Present Value and Amortization Tables)
A110: Step 3 - Click the Macro button below to Generate the first 2 columns of the Present Value (PV) Table.
A113: Step 4 - Using the Payment Schedule filled out in Steps 1 & 2, fill in the Payment Amounts into col F of the PV Table.
A114: a - If there are 12 payments for the 1st payment amount, and 6 payments for the 2nd payment amount, list the 1st amount in the
A115: first 12 rows of the Table, then the 2nd amount for the next 6 rows, and do the same for the remaining payment amounts listed
A116: in the Payment Schedule until all the payments are filled in on the Table.
A117: b - Make sure not to miss any Skipped Payment periods. If the Payment Schedule indicates the 13th payment is $0, then row 13 of the
A118: Table should be $0, same as the Payment Schedule.
A119: c - If there are any amounts listed for "Other Payment Considerations", add it to the final payment. For example, if the final
A120: payment is $20,000, and there is a Termination Penalty listed for $50,000, then the final payment in the Table should be $70,000.
A121: d - Check to make sure that the sum of all the payments entered into col F of the Table is the same as the Total Undiscounted Cash
A122: Flows in cell B22.
A124: Step 5 - Click the Macro button below to Calculate Net Present Value and Generate the PV and Amortization Tables.
A128: Step 6 - Check data for accuracy:
A129: a - Check the date of the final payment in the Amortization Table and compare to Subscription End Date in cell B8. Make sure the final
A130: payment date is reasonable in comparison to the subscription End Date (within same month if payments are Monthly, within the final
A131: quarter if Quarterly, etc).
A132: b - If payments change (there are amounts in Payment Amount #2 + rows), then check the dates the amounts change in the
A133: Amort Table (col K & M) to make sure the payments change on the correct dates as per the SBITA Contract.
A134: c - If 6a and 6b are BOTH correct, skip to Step 8 (Do NOT click the Start Over Macro Button).
A135: d - If 6a or 6b does not appear to be correct:
A136: i - Double-check the Instructions above (Steps 1 - 6), including the check for # of payments in 1i & check for Table payments in 4d.
A137: ii - Double-check cells B2-B8 by reviewing the SBITA Contract. These cells automatically filled based on answers in the Data Input
A138: tab. Make any necessary corrections in the Data Input tab (NOT in cells B2-B8) - the corresponding question #s are referenced above.
A139: iii - Double-Check the Payment Schedule and Other Payment Considerations sections. Compare back to the SBITA contract to
A140: verify, and correct as necessary.
A141: e - Once corrections have been made, click the Macro button below to Delete the PV & Amortization Tables.
A145: Step 7 - Repeat Steps 3-6 as needed until all checks (1i, 4d, 6a, 6b, and 6di-6diii) are correct.
A147: Step 8 - See Net Present Value calculated in cell B25 for the SBITA Liability and the SBITA Asset Cost in cell B34.
A148: Also, see Present Value Table in columns E-G,
A149: and Amortization Table in columns J-P.
A150: Note: If Implementation Period is not yet complete, then only a Development in Process Asset will be recognized at this point (cell B34 will
A151: return a value of "Not yet determined" if implementation is still in process & will also be noted as "Development in Process" in cell C31).
A152: The SBITA Liability & SBITA Asset will not be recognized until the SBITA is Put Into Service/Go-Live Date. If this is the case, please continue
A153: to track all Implementation Costs. This info will be requested in the following year's Closing Package Activity Form.
A155: Please DO NOT add SBITA implementation costs into the AZ360 Fixed Assets System. This will be done manually as the SBITA Asset
A156: includes not only the implementation costs, but also the Present Value of the Subscription Fixed Payments (Liability).

Sheet SBITA 10 - PV Calc
A1: Present Value Calculations tab - SBITA # 10 (column L) | B1: Contract # | C1: ='Data Input'!L56 -> 0
A2: Periodic Interest Rate (Section VI, #28-29 from Data Input tab) | B2: ='Data Input'!L239 -> 0
A3: Cash Flows at Beginning or End (Section IV, #21) | B3: ='Data Input'!L165 -> 0 | C3: Important:
A4: Number of payments (Section IV, #20) | B4: ='Data Input'!L157 -> 0 | C4: Do not insert/delete/move
A5: Frequency of payments (Section IV, #19) | B5: ='Data Input'!L150 -> 0 | C5: cells B2:B8
A6: Date of first payment (Section IV, #22) | B6: ='Data Input'!L171 -> 00:00:00 | C6: (macros depend on them)
A7: Date Put Into Service/Go-Live Date (#14 from Data Input tab) | B7: ='Data Input'!L132 -> 00:00:00
A8: Subscription End Date including Extensions (Section IV, #17) | B8: ='Data Input'!L145 -> 00:00:00
A10: Fixed Subscription Payment Schedule (Section V, #23 & see instructions below): | B10: Amount | C10: # of Payments
A11: Payment Amount #1 & # of Payments at this amount | B11: 0 | C11: 0
A12: Payment Amount #2 & # of Payments at this amount | B12: 0 | C12: 0
A13: Payment Amount #3 & # of Payments at this amount | B13: 0 | C13: 0
A14: Payment Amount #4 & # of Payments at this amount | B14: 0 | C14: 0
A15: Totals from add'l table below (if needed) | B15: =B102 -> 0 | C15: =C102 -> 0
A16: Total Subscription Payments (sum of all payment amounts * # of payments) | B16: =(B11*C11)+(B12*C12)+(B13*C13)+(B14*C14)+(B15) -> 0 | C16: =SUM(C11:C15) -> 0
A18: Other Payment Considerations: | C18: Answer per Data Input Tab
A19: Termination Penalty (Section V, #26) | B19: 0 | C19: ='Data Input'!L208 -> 0
A21: Total Other Payment Considerations | B21: =SUM(B19:B20) -> 0
A22: Total Undiscounted Cash Flows (Total Payments + Other Considerations) | B22: =B16+B21 -> 0
C24: Important:
A25: Liability Net Present Value (calculated after Macros below run) | B25: =SUM(G:G) -> 0 | C25: Do not insert/delete/move
C26: NPV must be cell B25
C27: (macros depend on it)
A28: Asset Adjustments (from Asset Adj tab): | B28: Asset Adj Amount
A29: Total Asset Adjustments during Current Year | B29: ='Asset Adj'!L174 -> 0
A30: EXPECTED Future Asset Adjustments (if there is an amt here, s/b DIP) | B30: ='Asset Adj'!L175 -> 0 | C30: DIP or Final?
A31: Total Asset Adjustment | B31: =SUM(B29:B30) -> 0 | C31: ='Asset Adj'!L177 -> FINAL Adj Amount
A34: Software Subscription Asset Cost (calculated after Macros below run) | B34: =IF(C31="FINAL Adj Amount",B25+B31,"Not yet determined") -> 0
A36: The Agency is not required to calculate the Present Value and/or enable Macros,
A37: but Steps 1 & 2 of the instructions below are REQUIRED to be completed.
A38: After completing Steps 1 & 2, if desired to calculate the Present Value, complete Steps 3 - 8:
A40: Note 1: First make sure your Excel settings are correct - | B40: See How to Enable Macros tab
A41: Note 2: Please do not Insert, Delete, or Move any cells, columns or rows as this could cause the Macros to fail.
A42: Note 3: The Teal Cells in columns B & C are for manual input, and the Present Value Table will need to be adjusted in column F.
A43: The Orange cells in columns B & C will automatically fill. The Present Value and Amortization Tables will be generated with the
A44: Macro buttons. Please do not make changes to the orange cells or anywhere within the Tables (except column F).
A46: Step 1 - Fill out the "Fixed Subscription Payment Schedule" above (starting on row 10).
A47: a - To calculate the Fixed Subscription Payment:
A48: i - Start with the fixed subscription periodic payments stated in the contract.
A49: ii - In addition, add "Fixed In-Substance Fees" to the above amount. "Fixed In-Substance Fees" are the Minimum Usage Costs of a variable
A50: usage fee. For Example, if a subscription includes up to 5 gigs of data used for a set fee, but charges extra for every additional gig, the
A51: minimum fee for the first 5 gigs is the "Fixed In-Substance Fee", and the per gig fees above that minimum would be the variable fees.
A52: iii - For payments that depend on an index or a rate (such as the Consumer Price Index or a market interest rate), the payment should be
A53: initially measured using the index or rate published as of the start of the subscription term.
A54: iv - EXCLUDE any variable usage fees and/or support/maintenance service fees included in the payment (see #24 & 25 in Data Input tab)
A55: b - If payments escalate over time, list the beginning payment amount (col B) & # of payments to be paid at that amount (col C), then
A56: move to line #2 and list the next payment amount & # of payments at that amount, etc.
A57: c - If an extension is deemed Reasonably Certain to be exercised, but the amount is listed as "negotiable", then use the fixed
A58: payment amount just prior to the date of extension for those unknown amounts.
A59: d - If there is an Abated or Free Rent period (skipped payment) indicated in the SBITA contract, | C59: Desc of Lease Incentives
A60: indicate that with a $0 payment amount (col B) & the number of payments to be skipped (col C). | C60: ='Data Input'!L218 -> 0
A61: Make sure to put these skipped payments in the correct order chronologically. For example, if there
A62: is a skipped payment for payment 13, list the first 12 payments on the first line, then list line #2 as
A63: $0 (col B) and 1 (col C), then line #3 as the continuing payments after the skipped payment.
A64: e - If a Bonus payment from the SBITA Vendor is included in the contract, subtract that amount from the payment closest to the proper
A65: chronological period (as described in d above). This may cause that payment amount to be negative.
A66: f - If payments are Less Often than Annually,indicate this in the Payment Schedule above by listing the 1st payment on the 1st row & a 1 in
A67: col C, then the 2nd row should show how many years to be skipped in col C ($0 in col B), then the 3rd row will show the 2nd payment.
A68: Repeat until all payments & all years are represented in the Payment Schdl (total in col C should tie to total yrs of subscription term in
A69: cell B4).
A70: g - Use the Teal box below to add any extra details, how payments change over time (For example, (a) Payment increases 5% every 10 yrs;
A71: (b) Payment recalculated every 5 yrs based on CPI, etc.), or describe payment frequency if Less Often than Annually.
A75: h - If there are not enough lines in the Payment Schedule above, use the table below to input the additional payment amounts, and the
A76: totals from the additional table will automatically be added to the Payment Schedule above. Contact the GAAP Group if you need more
A77: than 25 lines.
A78: i - Verify that the total # of payments in cell B4 is the same as the sum of col C (cell C16).
A80: Additional Subscription Payment Lines (if needed) | B80: Amount | C80: # of Payments
A81: Payment Amount #5 & # of Payments at this amount | B81: 0 | C81: 0
A82: Payment Amount #6 & # of Payments at this amount | B82: 0 | C82: 0
A83: Payment Amount #7 & # of Payments at this amount | B83: 0 | C83: 0
A84: Payment Amount #8 & # of Payments at this amount | B84: 0 | C84: 0
A85: Payment Amount #9 & # of Payments at this amount | B85: 0 | C85: 0
A86: Payment Amount #10 & # of Payments at this amount | B86: 0 | C86: 0
A87: Payment Amount #11 & # of Payments at this amount | B87: 0 | C87: 0
A88: Payment Amount #12 & # of Payments at this amount | B88: 0 | C88: 0
A89: Payment Amount #13 & # of Payments at this amount | B89: 0 | C89: 0
A90: Payment Amount #14 & # of Payments at this amount | B90: 0 | C90: 0
A91: Payment Amount #15 & # of Payments at this amount | B91: 0 | C91: 0
A92: Payment Amount #16 & # of Payments at this amount | B92: 0 | C92: 0
A93: Payment Amount #17 & # of Payments at this amount | B93: 0 | C93: 0
A94: Payment Amount #18 & # of Payments at this amount | B94: 0 | C94: 0
A95: Payment Amount #19 & # of Payments at this amount | B95: 0 | C95: 0
A96: Payment Amount #20 & # of Payments at this amount | B96: 0 | C96: 0
A97: Payment Amount #21 & # of Payments at this amount | B97: 0 | C97: 0
A98: Payment Amount #22 & # of Payments at this amount | B98: 0 | C98: 0
A99: Payment Amount #23 & # of Payments at this amount | B99: 0 | C99: 0
A100: Payment Amount #24 & # of Payments at this amount | B100: 0 | C100: 0
A101: Payment Amount #25 & # of Payments at this amount | B101: 0 | C101: 0
A102: Total Add'l Subscription Payments (will automatically be added to the Schdl above) | B102: =(B81*C81)+(B82*C82)+(B83*C83)+(B84*C84)+(B85*C85)+(B86*C86)+(B87*C87)+(B88*C88)+(B89*C89)+(B90*C90)+(B91*C91)+(B92*C92)+(B93*C93)+(B94*C94)+(B95*C95)+(B96*C96)+(B97*C97)+(B98*C98)+(B99*C99)+(B100*C100)+(B101*C101) -> 0 | C102: =SUM(C81:C101) -> 0
A105: Step 2 - Fill out the "Other Payment Considerations" section (starting on row 18) ONLY if instructed to do so on the Data Input tab
A106: The Termination Penalty line should only have an amount listed if a termination clause is deemed Reasonably Certain to be exercised
A107: based on decisions by the Agency (response from the Data Input tab is shown in col C) AND this termination will cause a Penalty to be due.
A109: Steps 3 - 8 are OPTIONAL (calculation of Present Value and Amortization Tables)
A110: Step 3 - Click the Macro button below to Generate the first 2 columns of the Present Value (PV) Table.
A113: Step 4 - Using the Payment Schedule filled out in Steps 1 & 2, fill in the Payment Amounts into col F of the PV Table.
A114: a - If there are 12 payments for the 1st payment amount, and 6 payments for the 2nd payment amount, list the 1st amount in the
A115: first 12 rows of the Table, then the 2nd amount for the next 6 rows, and do the same for the remaining payment amounts listed
A116: in the Payment Schedule until all the payments are filled in on the Table.
A117: b - Make sure not to miss any Skipped Payment periods. If the Payment Schedule indicates the 13th payment is $0, then row 13 of the
A118: Table should be $0, same as the Payment Schedule.
A119: c - If there are any amounts listed for "Other Payment Considerations", add it to the final payment. For example, if the final
A120: payment is $20,000, and there is a Termination Penalty listed for $50,000, then the final payment in the Table should be $70,000.
A121: d - Check to make sure that the sum of all the payments entered into col F of the Table is the same as the Total Undiscounted Cash
A122: Flows in cell B22.
A124: Step 5 - Click the Macro button below to Calculate Net Present Value and Generate the PV and Amortization Tables.
A128: Step 6 - Check data for accuracy:
A129: a - Check the date of the final payment in the Amortization Table and compare to Subscription End Date in cell B8. Make sure the final
A130: payment date is reasonable in comparison to the subscription End Date (within same month if payments are Monthly, within the final
A131: quarter if Quarterly, etc).
A132: b - If payments change (there are amounts in Payment Amount #2 + rows), then check the dates the amounts change in the
A133: Amort Table (col K & M) to make sure the payments change on the correct dates as per the SBITA Contract.
A134: c - If 6a and 6b are BOTH correct, skip to Step 8 (Do NOT click the Start Over Macro Button).
A135: d - If 6a or 6b does not appear to be correct:
A136: i - Double-check the Instructions above (Steps 1 - 6), including the check for # of payments in 1i & check for Table payments in 4d.
A137: ii - Double-check cells B2-B8 by reviewing the SBITA Contract. These cells automatically filled based on answers in the Data Input
A138: tab. Make any necessary corrections in the Data Input tab (NOT in cells B2-B8) - the corresponding question #s are referenced above.
A139: iii - Double-Check the Payment Schedule and Other Payment Considerations sections. Compare back to the SBITA contract to
A140: verify, and correct as necessary.
A141: e - Once corrections have been made, click the Macro button below to Delete the PV & Amortization Tables.
A145: Step 7 - Repeat Steps 3-6 as needed until all checks (1i, 4d, 6a, 6b, and 6di-6diii) are correct.
A147: Step 8 - See Net Present Value calculated in cell B25 for the SBITA Liability and the SBITA Asset Cost in cell B34.
A148: Also, see Present Value Table in columns E-G,
A149: and Amortization Table in columns J-P.
A150: Note: If Implementation Period is not yet complete, then only a Development in Process Asset will be recognized at this point (cell B34 will
A151: return a value of "Not yet determined" if implementation is still in process & will also be noted as "Development in Process" in cell C31).
A152: The SBITA Liability & SBITA Asset will not be recognized until the SBITA is Put Into Service/Go-Live Date. If this is the case, please continue
A153: to track all Implementation Costs. This info will be requested in the following year's Closing Package Activity Form.
A155: Please DO NOT add SBITA implementation costs into the AZ360 Fixed Assets System. This will be done manually as the SBITA Asset
A156: includes not only the implementation costs, but also the Present Value of the Subscription Fixed Payments (Liability).

Sheet Drop Down List
A2: Asset Type | B2: Useful Life in Months
A3: Software <$10M | B3: 60
A4: Software >$10M | B4: 120
A5: Other IT Arrangement | B5: Use SBITA term
A8: Payment System
A9: AFIS
A10: APP
A12: Yes / No / N/A
A13: Yes
A14: No
A15: N/A
A18: Payment frequency
A19: Monthly
A20: Quarterly
A21: Semi-annually
A22: Annually
A24: Payment B or E
A25: Begin
A26: End
A28: Payments Equal / Residual Value?
A29: Yes
A30: No - Fill out on PV Calc Tab
A31: N/A
A33: Termination Penalty?
A34: Yes - Fill out on PV Calc Tab
A35: No
A36: N/A
A38: One source / divided
A39: One Source
A40: Divided - Fill out Subscrptn Split Tab
A42: Type of Division
A43: Percentage (%)
A44: Specific $ amount
A46: Planned Cancellation
A47: Yes - use Planned End Date for Lease End Date
A48: No
A50: Asset Capitalized
A51: Yes - in a prior year
A52: Yes - during current FY
A53: No
A55: Existing or New
A56: New (FY2025)
A57: Existing w/Significant Modification
A59: Asset Cost Adj
A60: Yes - Fill out on Asset Adj Tab
A61: No
A63: Asset Adj - Vendor or 3rd party
A64: Yes - to SBITA Vendor
A65: Yes - to 3rd party consultant
A66: Yes - to SBITA Vendor & 3rd party consultant
A67: No
A69: Staff Time
A70: Yes but was not tracked
A71: Yes & was tracked
A72: No
A74: Estimated implementation staff costs
A75: Yes - estimate included below
A76: No
A77: N/A
